Workbook

Sheet Cover Page
D1: Add company logo
N2: Version 20.1
B8: Add photo
N13: Notes:
N14: This template may require adjustments by individual operators to meet specific reporting requirements as defined in the site Permit(s)
B29: Annual Performance Report 2020
B31: Permit EPR/BR4551IC
B33: Kent Enviropower Limited
B35: Allington Incinerator, Allington Quarry
B37: Kent Enviropower Limited
B39: Year: | C39: 2021
B41: Address: | C41: Laverstoke Road, Allington, Maidstone, Kent. ME16 0LE
B43: Tel: | C43: 0844 736 9990
B45: Email:
B47: Prepared by: | C47: Trevor Ellis | F47: Position: | G47: Environment Manager
B49: Approved by: | C49: Paul Newton | F49: Position: | G49: General Manager
B51: Version: | C51: 1
B53: Issue Date: | C53: 29th Jan 2021

Sheet Contents
A1: =+'Cover Page'!$B$29 -> Annual Performance Report 2020 | E1: =+'Cover Page'!$B$33 -> Kent Enviropower Limited
A3: Contents | K3: Notes:
A4: Section | B4: Subject | H4: Page | K4: Section references and Page nos. to be inserted
B5: Facility Information | K5: Sections and Subjects may require adjustment by individual operators to meet specific reporting requirements as defined in the sites Permit(s)
B6: Operational Summary
B7: Operational Data
B8: Performance Form 1
B9: Energy Form 1
B10: Permit Compliance
B11: Improvements
B12: Public Liaison
B13: Residue Quality - Optional
B14: Emissions to Water
B15: Emissions to Air (periodically monitored)
B16: Emissions to Air (continuously monitored)
B17: Hydrogen Chloride emissions
B18: Sulphur Dioxide emissions
B19: Oxides of Nitrogen emissions
B20: Total Organic Carbon emissions
B21: Particulate Matter emissions
B22: Carbon Monoxide emissions
B23: Ammonia emissions
A26: Version Control
A27: Section | B27: Information | H27: Date
A34: Distribution
A35: Copy | B35: Name, Role | H35: No.
A44: This report is required under the Industrial Emissions Directive’s Article 55(2) requirements on reporting and public information on waste incineration plants and co-incineration plants, which require the operator to produce an annual report on the functioning and monitoring of the plant and make it available to the public.

Sheet Facility Info
A1: =+'Cover Page'!$B$29 -> Annual Performance Report 2020 | E1: =+'[1]Cover Page'!$B$33 -> Kent Enviropower Limited
A3: Plant Description and Design | K3: Notes:
A5: Installation Description The Installation receives non hazardous municipal and industrial waste, recovers recyclable elements for reuse and eliminates the combustible element of the residue by burning in a fluidised bed furnace. Energy is recovered from the process and converted to electricity in place of non-renewable fossil fuels. The combustion gases are cleaned to meet the standards required by the Directive before discharge from a tall chimney. Ashes and other solid residues are removed from the installation. The Installation covers the site and the entire EfW plant including all EfW lines, waste reception, storage, on-site pre-treatment facilities, water, fuel and air supply systems, boiler, facilities for the treatment of exhaust gases, on-site facilities for treatment or storage of residues and waste water, stack, devices and systems for controlling combustion operations, recording and monitoring conditions. The Installation has a design throughput of approx 580,000 tonnes per annum with an EfW capacity approx 560,000 tonnes per annum. The transfer loading station receives food waste and clean source separated recyclables which it reloads for onward transport and recovery. There is a single waste reception followed by three independent waste treatment lines each complete with a heat recovery boiler, acid gas abatement, bag filter and a separate flue in the chimney. The heat produced from the combustion of the waste is used to generate steam in the boilers and the steam is then combined and passed to a steam turbine which generates approx 34.5 MW of electrical energy for export to the National Grid. | K5: Include summary of plant design, design capacity, no. of combustion lines, electrical and heat capacity and any other general information that describes the facility, its location and purpose
K19: Include summary of plant design, design capacity, no. of combustion lines, electrical and heat capacity and any other general information that describes the facility, its location and purpose
A20: Summary of Operational Processes and Procedures
A22: Raw Materials Waste is delivered to the plant in road vehicles which are weighed before proceeding to the tipping hall. This is a fully enclosed building, maintained under slight negative pressure to ensure that no odours, dust or litter can escape the building. The vehicles carry either unsorted mixed municipal waste, sorted waste for recycling or mixed recyclable waste and non recyclable waste and each tip into the appropriate section of the tipping hall. The unsorted mixed waste (black bag) is transferred by crane grab to a waste shredding line, it then moves forward through a metals extraction section where ferrous metals are removed for recycling before moving to the prepared fuel bunker. The facility also operates as a waste transfer site. It receives clean mixed recyclates and food wastes collected in the community and loads them in bulk onto their designated transport vehicles for transport off site for recovery. A crane grab in the prepared fuel bunker both mixes the waste and charges the hoppers of the three incineration lines. Hydrated lime for the flue gas cleaning process is delivered by bulk tanker and offloaded pneumatically into three 125m3 silos vented through a reverse pulse jet filter. Activated carbon for the flue gas cleaning process is stored in dedicated silos that are pneumatically filled from delivery trucks. There are three silos, one for each line, each equipped with filters to prevent dust emissions during filling. Urea, dissolved in water is stored in a fully bunded tank and is injected into the furnaces as necessary to control NOx emissions. Caustic soda for water treatment resin regeneration is delivered by bulk tanker and offloaded into a 5.5 m3 tank with scrubber, inside the demineralisation area. Hydrochloric acid for water treatment resin regeneration is delivered by bulk tanker and offloaded into a 5.5 m3 tank vented through the caustic soda scrubber in a bund outside the demineralisation area. Various other water treatment chemicals are delivered in appropriate containers and stored in bunded areas. Gas oil for the combustion chamber burners and on-site vehicles is stored in a fully bunded 150 m3 tank. Sand for the fluidised bed furnaces is stored in 3 silos each of 55 cubic meters capacity. Various maintenance materials (oils, greases, insulants, antifreezes, welding and fire fighting gases etc.) are stored in the appropriate manner. Combustion Process:- The technology employed for incineration is the ROWITEC unit which uses a fluidised bed process. The design has an inclined air distributor plate with a number of separate air supply chambers providing differential air flows across the bed, causing a revolving action. This technique promotes rapid and uniform mixing of the sand and bottom ash and ensures that heavy inert and non-combustible material migrates to the sides of the bed where they can easily be removed. An angled furnace wall above the fluidised bed zone restrains bed expansion under high fluidising air flows and so minimises particulate carry over. The elliptical patterns of air flow converge in the centre of the combustion area ensuring effective vertical and lateral turbulent mixing and high combustion efficiency and uniformity. The waste is burned on a bed consisting of sand and ash that is held in suspension by an upward flow of combustion air that circulates the combustion mixture up to the throat of the furnace. The furnace operating design is based on a thermal capacity of 53.8MW at full load and this can be achieved over the typical range of waste calorific values expected with municipal waste. The combustion air system provides the furnace with the total air requirements for fluidisation and combustion. Primary air is supplied to the bottom of the combustion chamber and fluidises the bed. This air is extracted from the waste reception and storage buildings and destroys all odours in the combustion chamber. Each furnace is equipped with two fuel oil burners for use at start-up to heat the furnace and also during extreme reductions in waste fuel calorific value when the temperature of the furnace would otherwise fall below 850 degrees Centigrade. Combustion control of the furnace will be achieved through a combination of furnace bed and freeboard temperature control, primary air flow control, oxygen control within the flue gas and furnace load. Recirculated flue gas is fed to the furnace bed as a cooling medium to control the furnace bed temperature and also to assist the control of NOx by influencing the combustion temperature conditions within the furnace. The furnace bed is managed to remove non-combustible material (bottom ash) from the bed and maintain the sand level within the optimum operating range. Bottom ashes produced in the furnace together with sand migrate down the slope of the furnace to the discharge section located at each side of the bed. The bottom ash and sand are both withdrawn from the discharge sections of the bed by two water-cooled discharge screw conveyors. Material passing out of the screw conveyors is discharged to a vibrating screen. Undersize material is returned to the sand hopper for re-use within the furnace while the oversized material is sent off site for recovery or re-use or landfill.
K36: Include summary of key processes and procedures such as (but not limited to); waste reception, control rooms, grate, bed and boiler, energy & heat generation, cooling systems, residue management, emission controls, health and safety systems, maintenance
A56: Energy Recovery Hot gases from the furnace pass through to a boiler designed to generate steam. The boiler comprises two fully water cooled radiation chambers, a single pass horizontal plain tube convective heating surface, incorporating a three stage convective superheater unit and a plain tube economiser section. The economiser is designed for high velocity gas flow to minimise the reformation of dioxins in the critical de Novo synthesis range. Steam is generated at 65 bar and a final temperature of 420 degrees Centigrade. The high pressure steam from all three boilers feeds into a common header which in turn will feed a condensing steam turbine that will generate electricity. Steam exiting the turbine will be condensed in an air cooled condenser and the condensate returned to the boilers. Gas Cleaning The plant is designed to meet the requirements of the Industrial Emissions Directive as a minimum for releases to air by a combination of main process design and operation and abatement equipment. Flue gases pass from the boiler to the gas cleaning equipment. The gas passes to an electrostatic precipitator (ESP) for the separation of ash carried over from the furnace with the flue gas. Material collected in the ESP will be discharged by means of rotary valves and chain conveyors and then pneumatically fed to the ash silos or re-injected into the flue gas cleaning system. Gases leaving the ESP enter the gas cleaning system. This comprises a circo clean reactor and bag filter system. Gases entering the circo clean reactor will be at a temperature of 190 to 230 degrees C and will come into contact with a mixture of water, hydrated lime and activated carbon that have been injected into the reactor. The reactor is designed to reduce or remove acidic pollutants such as HCl, SO2 and HF by the use of the hydrated lime and dioxins and furans, PCBs, PAHs, mercury vapour and heavy metal salts such as mercury chloride by the use of the activated carbon. The injected water enhances the reactions and cools the gas. The control system of the circo clean reactor optimises the use of reactants by balancing the feed rate with the concentration of the pollutants entering the circo clean reactor. The final stage of the gas cleaning system is the bag filter unit which separates the particulate material from the flue gas. The baghouse filter consists of compartments each of which contains a number of tubular filter bags. A thick porous layer of particulate builds on the bag surfaces to form a filter cake which efficiently removes ultra fine particles from the gas stream and the excess lime continues to react with the acid gases. Bag house residue is discharged from the compartments via the integrated buffer storage by a closed pneumatic conveying system into the reaction product silos. Silos are equipped with a filter, hopper heating and fluidisation system to assist discharge. The residue is then discharged directly into road vehicles under dust free conditions for transport off site to a licensed facility. Nitrogen oxides (NOx) abatement is achieved by the use of both flue gas recirculation (FGR) and selective non-catalytic reduction (SNCR). The SNCR is based on the injection of urea into the furnace chambers before the boilers and before the lime and carbon injection and before the gas passes to bag filters. The cleaned gas then discharges to atmosphere via three 80-metre flues in a common stack at an efflux velocity in excess of 15 ms-1 at maximum throughput. Ancillary Operations Demineralised water is required to compensate for boiler blowdown losses. A package demineralisation plant provides this water. The ion exchange resins are regenerated using sodium hydroxide and hydrochloric acid and the regeneration effluent is routed through a neutralisation tank to the collection pit for reuse where possible. Ash Handling Bottom ash, the combined boiler and ESP ash and the flue gas treatment residue (FGTR) from the bag filter system, are each sent for separate disposal off site by licensed contractors subject to waste licensing legislation. FGTR is not mixed with any other ash at any time. The bottom ash is likely to be subject to ferrous and non ferrous metals extraction by the contractors before disposal or reuse. All operations will be subject to waste licensing legislation and be tracked by the Environment Agency. At least quarterly sampling of the bottom ash will be carried out to ensure effective burn out is being achieved by testing for the “loss on ignition” of the residual ash. All other solid waste residues arising from the operation of the process will be removed from site, in enclosed containers, for disposal by suitable contractors. Liquid Effluent and Site Drainage Uncontaminated surface water from the roads and parking area that is not reused within the process will be discharged to sewer.
A89: Emissions Monitoring Emissions from the stack are continuously monitored for: particulate, carbon monoxide (CO), ammonia (NH3), sulphur dioxide (SO2), hydrogen chloride (HCl), oxygen (O2), nitrogen oxides (NOx) and volatile organic compounds (VOC). In addition periodic sampling and measurement will be carried out for metals cadmium (Cd), thallium (Tl), mercury (Hg), antimony (Sb), arsenic (As), lead (Pb), chromium (Cr), cobalt (Co), copper (Cu), manganese (Mn), nickel (Ni), vanadium (V), dioxins and furans, dioxin like PCBs, hydrogen fluoride (HF) and nitrous oxide (N2O). Periodic measurements will be carried out four times in the first year and thereafter either at the same frequency or twice per year dependant on the substances.

Sheet Operational Data
A1: =+'Cover Page'!$B$29 -> Annual Performance Report 2020 | E1: =+'Cover Page'!$B$33 -> Kent Enviropower Limited
A3: Operational Data | K3: Notes:
A4: Plant Size | B4: 560000 | D4: tonnes pa | E4: 41670 | F4: MWth | G4: 376680 | H4: MWe | K4: * - RDF to include SRF
A5: No. of combustion lines | B5: 3 | D5: No. of Turbines: | F5: 1 | K5: ** - CHP plants only
K6: 2020 updates include; heat in MWh, water in Litres, NCV in MJ/kg
A7: Waste types received | B7: Unit | C7: Q1 | D7: Q2 | E7: Q3 | F7: Q4 | G7: Year Total | H7: %
A8: Household / Local Authority | B8: tonnes | C8: 82138.24 | D8: 86012.64 | E8: 75221.32 | F8: 69253 | G8: =SUM(C8:F8) -> 312625.2 | H8: =IF(G8>0,G8/$G$14,"-") -> 0.6699245031 | K8: Availability Definition: 'the availability of a line is to be calculated by the number of hours the line reported Continuously Monitored emission levels to the Regulator through the calendar year divided by the total number of hours in that year. The overall plant availability is calculated as the Mean of all lines in the plant. For clarity this includes periods of Other Than Normal Operating Conditions (OTNOC) and abnormal operation.' Rationale: The primary function of an Energy from Waste facility is the disposal of waste. It follows therefore that the availability of a plant is determined by the period of time a facility spends undertaking this activity.
A9: Commercial & Industrial | C9: 53085.18 | D9: 37040.68 | E9: 17712.68 | F9: 8881.94 | G9: =SUM(C9:F9) -> 116720.48 | H9: =IF(G9>0,G9/$G$14,"-") -> 0.2501203024
A10: Food waste | C10: 1236.38 | D10: 1257.14 | E10: 1229.46 | F10: 1293.62 | G10: 5016.6 | H10: 0.01075007153
A11: Recyclates waste | C11: 4871.64 | D11: 5849.84 | E11: 5341.28 | F11: 5573.52 | G11: =SUM(C11:F11) -> 21636.28 | H11: 0.04636438178
A12: MSW | C12: 0 | D12: 0 | E12: 1572.36 | F12: 6475.88 | G12: =SUM(C12:F12) -> 8048.24 | H12: 0.01724657252
A13: Card/Paper | C13: 583 | D13: 590.92 | E13: 652.9 | F13: 783.74 | G13: 2610.56 | H13: 0.005594168707
A14: Total waste received | C14: =SUM(C8:C13) -> 141914.44 | D14: =SUM(D8:D13) -> 130751.22 | E14: =SUM(E8:E13) -> 101730 | F14: =SUM(F8:F13) -> 92261.7 | G14: =SUM(G8:G13) -> 466657.36 | H14: 1
A15: Rejected Waste | G15: =SUM(C15:F15) -> 0 | H15: -
A16: Unprocessed waste transferred out | C16: 6691.02 | D16: 7697.9 | E16: 11494.98 | F16: 14147.12 | G16: 40031.02 | H16: 0.08578246789
A17: Total waste combusted | C17: 131843.34 | D17: 119603.84 | E17: 91958.87 | F17: 79199.88 | G17: 422605.93
A19: Energy Usage / Export | B19: Unit | C19: Q1 | D19: Q2 | E19: Q3 | F19: Q4 | G19: Year Total | H19: KWh/te
A20: Power Generated | B20: MWh | C20: 74982 | D20: 66910 | E20: 45182 | F20: 37086 | G20: =SUM(C20:F20) -> 224160 | H20: =IF(G20>0,G20*1000/$G$17,"-") -> 530.4232243
A21: Power Exported | C21: 58931 | D21: 51491 | E21: 34012 | F21: 28336 | G21: =SUM(C21:F21) -> 172770 | H21: =IF(G21>0,G21*1000/$G$17,"-") -> 408.8205767
A22: Power Used on site | C22: 16114 | D22: 16469 | E22: 13683 | F22: 11860 | G22: =SUM(C22:F22) -> 58126 | H22: =IF(G22>0,G22*1000/$G$17,"-") -> 137.5418466
A23: Power Imported | C23: 63 | D23: 1050 | E23: 2513 | F23: 3110 | G23: 6736 | H23: =IF(G23>0,G23*1000/$G$17,"-") -> 15.93919896
A24: Parasitic Load | B24: % | C24: =IF(C20>0,1-C21/(C20+C23),"-") -> 0.2147244986 | D24: =IF(D20>0,1-D21/(D20+D23),"-") -> 0.2423337257 | E24: =IF(E20>0,1-E21/(E20+E23),"-") -> 0.2868854178 | F24: =IF(F20>0,1-F21/(F20+F23),"-") -> 0.2950542343 | G24: =IF(G20>0,1-G21/(G20+G23),"-") -> 0.2517410436
A25: R1 value | C25: 0.55 (explanation send to EA) | G25: Design / Operational / n/a
A27: Waste Disposal & Recovery | B27: Unit | C27: Q1 | D27: Q2 | E27: Q3 | F27: Q4 | G27: Year Total | H27: % inputs
A28: APC Residues - produced | B28: tonnes | C28: 10976.12 | D28: 11286.34 | E28: 8411.46 | F28: 7610.08 | G28: =SUM(C28:F28) -> 38284 | H28: =IF(G28>0,G28/$G$14,"-") -> 0.08203877894
A29: IBA - produced | C29: 12837.86 | D29: 14467.16 | E29: 11214.72 | F29: 8328.74 | G29: 46848.48 | H29: =IF(G29>0,G29/$G$14,"-") -> 0.1003916021
A30: Metals recycling | C30: 3844.1 | D30: 3977.44 | E30: 2690.08 | F30: 2119.28 | G30: =SUM(C30:F30) -> 12630.9 | H30: =IF(G30>0,G30/$G$14,"-") -> 0.02706675407
A32: Raw Material Usage | B32: Unit | C32: Q1 | D32: Q2 | E32: Q3 | F32: Q4 | G32: Year Total | H32: kg or Ltr /te
A33: Mains Water | B33: ltrs | C33: 37745000 | D33: 39630000 | E33: 36689000 | F33: 20836000 | G33: =SUM(C33:F33) -> 134900000 | H33: =IF(G33>0,G33/$G$14,"-") -> 289.0771936
A34: Lime / hydrated lime | B34: kgs | C34: 794060 | D34: 841700 | E34: 763940 | F34: 683760 | G34: 3083460 | H34: =IF(G34>0,G34/$G$14,"-") -> 6.607546059
A35: Urea | B35: kgs | C35: 21700 | D35: 0 | E35: 0 | F35: 0 | G35: 21700 | H35: =IF(G35>0,G35/$G$14,"-") -> 0.04650092736
A36: Activated carbon | B36: kgs | C36: 55880 | D36: 62660 | E36: 54600 | F36: 28280 | G36: =SUM(C36:F36) -> 201420 | H36: =IF(G36>0,G36/$G$14,"-") -> 0.4316228935
A37: Caustic Soda | B37: kgs | C37: 35900 | D37: 35900 | E37: 64170 | F37: 36020 | G37: 171990 | H37: =IF(G37>0,G37/$G$14,"-") -> 0.3685573501
A38: Hydrochloric Acid | B38: kgs | C38: 40360 | D38: 47074.23913 | E38: 61730 | F38: 39210 | G38: =SUM(C38:F38) -> 188374.2391 | H38: =IF(G38>0,G38/$G$14,"-") -> 0.4036671341
A39: Sand | B39: kgs | C39: 449560 | D39: 533260 | E39: 695200 | F39: 1038600 | G39: 2716620 | H39: 5.821444668
A40: Ammonia | B40: kgs | C40: 920000 | D40: 0 | E40: 0 | F40: 0 | G40: 920000 | H40: 1.971467888
A41: Salt | B41: kgs | C41: 2000 | D41: 4000 | E41: 0 | F41: 4000 | G41: 10000 | H41: 0.02142899878
A42: Fuel oil | B42: ltrs | C42: 424950 | D42: 520670 | E42: 1001650 | F42: 1161930 | G42: 3109200 | H42: 6.662704302
A44: Summary | B44: Line/Unit | C44: Q1 | D44: Q2 | E44: Q3 | F44: Q4 | G44: Year Total | J44: Hrs in year
A45: Availability of waste combustion by line, hrs | B45: 1 | C45: 1959 | D45: 1933 | E45: 1474 | F45: 899 | G45: =SUM(C45:F45) -> 6265 | H45: x % | J45: 8760
B46: 2 | C46: 2105 | D46: 1657 | E46: 1363 | F46: 1585 | G46: 6710 | H46: x %
B47: 3 | C47: 1659 | D47: 1998 | E47: 1340 | F47: 1115 | G47: 6112 | H47: x %
A48: Overall Availability, mean avg. of all lines, hrs | C48: =AVERAGE(C45:C47) -> 1907.666667 | D48: 1862.666667 | E48: 1392.333333 | F48: 1199.666667 | G48: =AVERAGE(G45:G47) -> 6362.333333 | H48: x %
A49: Hours of turbine operations, hrs | B49: 1 | C49: 2172.75 | D49: 2043 | E49: 1642 | F49: 1460 | G49: 7317.75 | H49: x %
A50: Abnormal Events | B50: qty. | C50: 0 | D50: 0 | E50: 1 | F50: 0 | G50: 1 | H50: =IF(G50>0,"yes","no") -> yes
A51: Abnormal operation | B51: hours | C51: 0 | D51: 0 | E51: 0.5 | F51: 0 | G51: 0.5 | H51: =+(G51)/J45 -> 5.707762557e-05
A52: Permit Breaches | B52: qty. | C52: 1 | D52: 1 | E52: 0 | F52: 8 | G52: 10 | H52: =IF(G52>0,"yes","no") -> yes

Sheet Operational Summary
A1: =+'Cover Page'!$B$29 -> Annual Performance Report 2020 | E1: =+'Cover Page'!$B$33 -> Kent Enviropower Limited
A3: Summary of Plant Operations and Maintenance during the reporting year | K3: Notes:
A5: Line 1 availability – 71.3% Line 2 availability – 76.4% Line 3 availability – 69.6% Average availability – 72.4% Steam turbine availability – 71.3% Outages were originally planned for March, June and September in 2020, but due to Covid 19 all three outages were undertaken in the final quarter of the year – due to the delay plant reliability has deteriorated, and the outages took longer than planned on all three occasions. At the same time, Allington’s first ‘Major’ steam turbine inspection was undertaken, including the replacement of both turbine and generator rotors. Covid 19 presented a number of new challenges to the outages as well as day to day operations. The team have shown great flexibility through the year to cater for the changing requirements, despite the frequent setbacks. | K5: Include summary of key operational and/or maintenance activity undertaken in the year, such as any major component upgrades and/or replacements
A29: Summary of Residue Handling for the reporting year
A31: Bottom ash, the combined boiler and ESP ash and the flue gas treatment residue (FGTR) from the bag filter system, are each sent for separate disposal off site by licensed contractors subject to waste licensing legislation. FGTR is not mixed with any other ash at any time. The bottom ash is likely to be subject to ferrous and non ferrous metals extraction. IBA is subject to hazardous assessment twice a month and approx. 42 vehicles are sent off site every week for recovery. The APC residues are tested quarterly and approx. 36 tankers are sent off site every week. Majority of this goes to landfill, and 20% for recovery. | K31: Include in here a summary of residue handling regimes and destinations

Sheet Perf. Form 1
A1: =+'Cover Page'!C39 -> 2021 | B1: Annual Reporting Performance Form 1
A3: =+'Cover Page'!B31 -> Permit EPR/BR4551IC | F3: Operator: | G3: =+'Cover Page'!B37:I37 -> 0
A4: Facility: | B4: =+'Cover Page'!B33:I33 -> Kent Enviropower Limited | F4: Form: | G4: Performance 1
A6: Reporting Period from: | D6: 2020-01-01 | F6: to: | G6: 2020-12-31
A8: =+A1 -> 2021 | B8: Annual Reporting of Waste Disposal and Recovery
A9: Waste Description | C9: Disposal Route(s) | E9: Disposal Tonnes | G9: Recovery Tonnes | I9: % / tonne of waste incinerated
A10: 1) Hazardous Wastes
A11: APC Residues | C11: Landfill | E11: 26710.06 | I11: =IF((E11+G11)>0,(E11+G11)/'Operational Data'!$G$17, "-") -> 0.06320323049
A12: APC Residues | C12: Recycling | G12: 11573.94 | I12: =IF((E12+G12)>0,(E12+G12)/'Operational Data'!$G$17, "-") -> 0.02738707429
I13: =IF((E13+G13)>0,(E13+G13)/'Operational Data'!$G$17, "-") -> -
I14: =IF((E14+G14)>0,(E14+G14)/'Operational Data'!$G$17, "-") -> -
A15: Total Hazardous Waste | E15: =SUM(E11:F14) -> 26710.06 | G15: =SUM(G11:H14) -> 11573.94 | I15: =IF((E15+G15)>0,(E15+G15)/'Operational Data'!$G$17, "-") -> 0.09059030478
A17: 2) Non-Hazardous Wastes
A18: IBA | C18: Recycling | G18: 46848.48 | I18: =IF((E18+G18)>0,(E18+G18)/'Operational Data'!$G$17, "-") -> 0.1108561823
A19: Ferrous Metal | C19: Recycling | G19: 12630.9 | I19: =IF((E19+G19)>0,(E19+G19)/'Operational Data'!$G$17, "-") -> 0.02988812769
A20: Process Water | I20: =IF((E20+G20)>0,(E20+G20)/'Operational Data'!$G$17, "-") -> -
I21: =IF((E21+G21)>0,(E21+G21)/'Operational Data'!$G$17, "-") -> -
I22: =IF((E22+G22)>0,(E22+G22)/'Operational Data'!$G$17, "-") -> -
A23: Total Non-Hazardous Waste | E23: =SUM(E18:F22) -> 0 | G23: =SUM(G18:H22) -> 59479.38 | I23: =IF((E23+G23)>0,(E23+G23)/'Operational Data'!$G$17, "-") -> 0.14074431
A24: TOTAL WASTE | E24: =+E23+E15 -> 26710.06 | G24: =+G23+G15 -> 71053.32 | I24: =IF((E24+G24)>0,(E24+G24)/'Operational Data'!$G$17, "-") -> 0.2313346147
A26: Operator’s comments :
A31: =+A1 -> 2021 | B31: Annual Reporting of Water and Other Raw Material Usage
A32: Raw Material | E32: Usage | G32: Unit | H32: Specific Usage | J32: Unit
A33: Mains Water | E33: =+'Operational Data'!G33 -> 134900000 | G33: m3 | H33: =IF(E33>0,E33/'Operational Data'!$G$17,"-") -> 319.2099079 | J33: m3/te
A34: Total Water | E34: 134900000 | G34: m3 | H34: =IF(E34>0,E34/'Operational Data'!$G$17,"-") -> 319.2099079 | J34: m3/te
A35: Lime / hydrated lime | E35: =+'Operational Data'!G34 -> 3083460 | G35: kg | H35: =IF(E35>0,E35/'Operational Data'!$G$17,"-") -> 7.296300835 | J35: kg/te
A36: Urea | E36: =+'Operational Data'!G35 -> 21700 | G36: kg | H36: =IF(E36>0,E36/'Operational Data'!$G$17,"-") -> 0.05134807266 | J36: kg/te
A37: Activated carbon | E37: =+'Operational Data'!G36 -> 201420 | G37: kg | H37: =IF(E37>0,E37/'Operational Data'!$G$17,"-") -> 0.4766142302 | J37: kg/te
A38: Caustic Soda | E38: =+'Operational Data'!G37 -> 171990 | G38: kg | H38: =IF(E38>0,E38/'Operational Data'!$G$17,"-") -> 0.4069748856 | J38: kg/te
A39: Hydrochloric Acid | E39: =+'Operational Data'!G38 -> 188374.2391 | G39: kg | H39: =IF(E39>0,E39/'Operational Data'!$G$17,"-") -> 0.4457444294 | J39: kg/te
A40: Sand | E40: =+'Operational Data'!G39 -> 2716620 | G40: kg | H40: =IF(E40>0,E40/'Operational Data'!$G$17,"-") -> 6.428258117 | J40: kg/te
A41: Ammonia | E41: =+'Operational Data'!G40 -> 920000 | G41: kg | H41: =IF(E41>0,E41/'Operational Data'!$G$17,"-") -> 2.176968979 | J41: kg/te
A42: Salt | E42: =+'Operational Data'!G41 -> 10000 | G42: kg | H42: =IF(E42>0,E42/'Operational Data'!$G$17,"-") -> 0.02366270629 | J42: kg/te
A44: Operator’s comments :
A48: =+A31 -> 2021 | B48: Annual Reporting of other performance indicators
A49: Parameter | C49: Results by Line
C50: A1 | D50: A2 | E50: A3 | F50: A4 | G50: A5 | I50: Turbine 1 | J50: Turbine 2
A51: Operating hours for the year, hours | C51: 6265 | D51: 6710 | E51: 6112
A52: Number of periods of abnormal operation, qty. | C52: 1 | D52: 0 | E52: 0
A53: Cumulative hours of abnormal operation for this year, hours | C53: 0.5 | D53: 0 | E53: 0
A55: Operator’s comments :
A59: Signed: | G59: Date: | H59: 29th January 2021

Sheet Energy Form 1
A1: =+'Cover Page'!C39 -> 2021 | B1: Annual Reporting of Energy Usage/Export
A3: =+'Cover Page'!B31 -> Permit EPR/BR4551IC | F3: Operator: | G3: =+'Cover Page'!B37:I37 -> 0
A5: Facility: | B5: =+'Cover Page'!B33:I33 -> Kent Enviropower Limited | F5: Form: | G5: Energy 1
A7: Reporting Period from: | D7: =+'Perf. Form 1'!D6:E6 -> 2020-01-01 | F7: to: | G7: =+'Perf. Form 1'!G6:H6 -> 2020-12-31
A9: Energy Source | D9: Energy Usage | F9: Unit | G9: Specific Usage (KWh/tonne incinerated
A10: Electricity Produced | D10: =+'Operational Data'!G20 -> 224160 | F10: MWh | G10: =+'Operational Data'!H20 -> 530.4232243
A11: Electricity Imported | D11: =+'Operational Data'!G23 -> 6736 | F11: MWh | G11: =+'Operational Data'!H23 -> 15.93919896
A12: Electricity Exported | D12: =+'Operational Data'!G21 -> 172770 | F12: MWh | G12: =+'Operational Data'!H21 -> 408.8205767
A13: Gas Oil | D13: 2751.642 | F13: tonnes | G13: 8570.67
A14: Steam/hot water exported | D14: 0 | F14: GWh | G14: 0
A16: Operator’s comments :
A17: Gas/Fuel oil conversion from litres used to tonnes based on density 885 Kg/m3
A25: Signed: | G25: Date: | H25: 29th January 2021

Sheet Permit Compliance
A1: =+'Cover Page'!$B$29 -> Annual Performance Report 2020 | E1: =+'Cover Page'!$B$33 -> Kent Enviropower Limited
A3: Summary of Permit Compliance
A5: Compliance with permit limits for continuously monitored pollutants
A7: The plant met its emission limits as shown in the table below:
A8: Substance | C8: Percentage time compliant during operation | L8: Notes:
C9: Half-hourly limit | F9: Daily limit | L9: Report to 2 decimal places, i.e. xx.xx% Please provide a brief summary of each notification or non-compliance in the table (rather than just referring to notifications that were sent to the Regulator).
A10: Particulates | C10: 0.9998440567 | F10: 1
A11: Oxides of nitrogen | C11: 0.9999 | F11: 1
A12: Sulphur dioxide | C12: 1 | F12: 1
A13: Carbon monoxide | C13: 100% 95% of 10-min averages | F13: 1
A14: Total organic carbon | C14: 1 | F14: 1
A15: Hydrogen chloride | C15: 1 | F15: 1
A16: Hydrogen fluoride | C16: 1 | F16: 1
C17: 1 | F17: 1
A19: Summary of any notifications or non-compliances under the permit
A20: Date | B20: Summary of notification or non-compliance [including Line/Reference] | E20: Reason | H20: Measures taken to prevent reoccurrence
A21: 2020-01-15 | B21: 071 Schedule 1 Line 1 Dust exceedance | E21: Shutdown conditions not achieved & Recirculation damper open. (Recirculation damper being open can allow the circoclean reactor cloud to draught directly through the stack) | H21: Relevant procedures reviewed and updated and all relevant personnel trained
A22: 2020-06-12 | B22: 072 Schedule 1 Line 1 NOx exceedance | E22: The computer link between the CEMVIEW (emissions monitoring computer) and the DCS (Distributed Control System) was lost and when NOx increased the abatement system (monitored by the DCS) was unable to respond. | H22: Modify the CEMVIEW to DCS link to prevent failure. Modify DCS Emissions Screen to visually indicate when the CEMview data link is lost.
A23: 2020-09-28 | B23: 018 L1 NOx abnormal operation | E23: Valve blocked that reduced water flow | H23: The valve was cleared and flow resumed ending the abnormal operation.
A24: 2020-10-07 | B24: 073 Schedule 1 Line 1 Dust exceedance | E24: Recirculation damper open. (Recirculation damper being open can allow the circoclean reactor cloud to draught directly through the stack) | H24: Review Start-up to ensure the possible collapsed Circoclean cloud is slowly removed with the fans Circoclean reactor – Review the Injection of water around a couple of 2-4 m3/hr
A25: 2020-10-13 | B25: 074 Schedule 1 L2 Furnace pressure relief valve | E25: Highly volatile waste caused rapid expansion of pressure | H25: Trials to see if Single Sided feeding promotes overpressures on lines
A26: 2020-10-17 | B26: 075 Schedule 1 Line 1 Dust exceedance | E26: Circoclean cloud dropped into the U-bend when ID fan was lost, which caused the draught towards the stack when the Recirculation damper opened | H26: Review the logic of the recirculation damper vs ID fan (consider increasing 20% setting for start-up) Finalise with the installation of the new water injection system
A27: 2020-10-22 | B27: 076 Schedule 1 Line 1 Dust exceedance | E27: Bag failures due to high level in residue hopper 2 | H27: Filter bags were damaged due to high level in residue hopper 2. Damaged bags to be changed and hopper to be empty. Review the current alarm for a high level in the residue hoppers
A28: 2020-10-23 | B28: 077 Schedule 1 Line 1 Dust exceedance
A29: 2020-10-28 | B29: 078 Schedule 1 L2 Furnace pressure relief valve | E29: Highly volatile waste caused rapid expansion of pressure | H29: Trials to see if Single Sided feeding promotes overpressures on lines
A30: 2020-11-16 | B30: 079 Schedule 1 Line 3 Dust exceedance | E30: Recirculation damper open. (Recirculation damper being open can allow the circoclean reactor cloud to draught directly through the stack) | H30: Review Start-up to ensure the possible collapsed Circoclean cloud is slowly removed with the fans
A31: 2020-12-20 | B31: 080 Schedule 1 Line 2 Dust exceedance | E31: Recirculation damper open. (Recirculation damper being open can allow the circoclean reactor cloud to draught directly through the stack) | H31: Review Start-up to ensure the possible collapsed Circoclean cloud is slowly removed with the fans
A33: Summary of any complaints received and actions to taken to resolve them.
A34: Date | B34: Summary of complaint [including Line/Reference] | E34: Reason * | H34: Measures taken to prevent reoccurrence
A35: 2020-01-07 | B35: Traffic queue | E35: Substantiated | G35: Operator | H35: ** see below
A36: 2020-01-10 | B36: Litter | E36: Not Substantiated | G36: Operator | H36: N/A
A37: 2020-01-23 | B37: Odour | E37: Not Substantiated | G37: Operator | H37: N/A
A38: 2020-03-05 | B38: Queues | E38: Substantiated | G38: Operator | H38: ** see below
A39: 2020-05-07 | B39: Queues | E39: Substantiated | G39: Operator | H39: ** see below
A40: 2020-05-07 | B40: RTA | E40: Substantiated | G40: Operator | H40: ** see below
A41: 2020-06-02 | B41: Odour | E41: Substantiated | G41: Operator | H41: ** see below
A42: 2020-06-04 | B42: Odour | E42: Substantiated | G42: Operator | H42: ** see below
A43: 2020-06-08 | B43: Odour | E43: Substantiated | G43: Operator | H43: ** see below
A44: 2020-06-08 | B44: Odour | E44: Substantiated | G44: Operator | H44: ** see below
A45: 2020-06-18 | B45: Queues and Odour | E45: Substantiated | G45: Operator | H45: ** see below
A46: 2020-06-23 | B46: Queues | E46: Substantiated | G46: Operator | H46: ** see below
A47: 2020-07-10 | B47: Odour | E47: Substantiated | G47: Operator | H47: ** see below
A48: 2020-07-10 | B48: Odour | E48: Substantiated | G48: Operator | H48: ** see below
A49: 2020-07-11 | B49: Odour | E49: Substantiated | G49: Operator | H49: ** see below
A50: 2020-07-13 | B50: Odour | E50: Substantiated | G50: Operator | H50: ** see below
A51: 2020-07-13 | B51: Odour | E51: Substantiated | G51: Operator | H51: ** see below
A52: 2020-07-14 | B52: Odour | E52: Substantiated | G52: Operator | H52: ** see below
A53: 2020-07-20 | B53: Odour | E53: Substantiated | G53: Operator | H53: ** see below
A54: 2020-07-23 | B54: Flies | E54: Not Substantiated | G54: Operator | H54: N/A
A55: 2020-08-03T13:41:46 | B55: Odour | E55: Substantiated | G55: Operator | H55: ** see below
A56: 2020-08-03T14:05:48 | B56: Odour | E56: Substantiated | G56: Operator | H56: ** see below
A57: 2020-08-13T14:52:19 | B57: Odour and Flies | E57: Not Substantiated | G57: Operator | H57: N/A
A58: 2020-08-13T15:15:11 | B58: Odour and Flies | E58: Not Substantiated | G58: Operator | H58: N/A
A59: 2020-08-29T17:44:51 | B59: Odour | E59: Substantiated | G59: Operator | H59: ** see below
A60: 2020-09-10T14:40:00 | B60: Odour | E60: Substantiated | G60: Operator | H60: ** see below
A61: 2020-09-14T08:00:00 | B61: Odour | E61: Substantiated | G61: Operator | H61: ** see below
A62: 2020-09-15T08:30:00 | B62: Odour | E62: Not Substantiated | G62: Operator | H62: N/A
A63: 2020-09-21T07:00:00 | B63: Odour | E63: Substantiated | G63: Operator | H63: ** see below
A64: 2020-09-21T09:30:00 | B64: Odour | E64: Substantiated | G64: Operator | H64: ** see below
A65: 2020-09-21T11:01:00 | B65: Odour | E65: Substantiated | G65: Operator | H65: ** see below
A66: 2020-09-21T13:28:00 | B66: Odour | E66: Substantiated | G66: Operator | H66: ** see below
A67: 2020-09-25T09:58:00 | B67: Odour | E67: Substantiated | G67: Operator | H67: ** see below
A68: 2020-09-26T08:00:00 | B68: Odour | E68: Substantiated | G68: Operator | H68: ** see below
A69: 2020-09-26T09:00:00 | B69: Odour | E69: Substantiated | G69: Operator | H69: ** see below
A70: 2020-09-26T10:00:00 | B70: Odour | E70: Substantiated | G70: Operator | H70: ** see below
A71: 2020-09-26 | B71: Odour | E71: Substantiated | G71: Operator | H71: ** see below
A72: 2020-09-26T14:50:00 | B72: Odour | E72: Substantiated | G72: Operator | H72: ** see below
A73: 2020-09-27 | B73: Odour | E73: Substantiated | G73: Operator | H73: ** see below
A74: 2020-09-27 | B74: Odour | E74: Substantiated | G74: Operator | H74: ** see below
A75: 2020-09-27 | B75: Odour | E75: Substantiated | G75: Operator | H75: ** see below
A76: 2020-09-28 | B76: Flies | E76: Not Substantiated | G76: Operator | H76: N/A
A77: 2020-10-07T15:24:00 | B77: Odour | E77: Substantiated | G77: Operator | H77: ** see below
A78: 2020-10-08T15:55:00 | B78: Odour | E78: Substantiated | G78: Operator | H78: ** see below
A79: 2020-10-11T10:45:00 | B79: Odour | E79: Substantiated | G79: Operator | H79: ** see below
A80: 2020-10-15T15:30:00 | B80: Odour | E80: Substantiated | G80: Operator | H80: ** see below
A81: 2020-10-16T12:00:00 | B81: Odour | E81: Substantiated | G81: EA | H81: ** see below
A82: 2020-10-17T10:51:00 | B82: Odour | E82: Substantiated | G82: Operator | H82: ** see below
A83: 2020-11-03T09:15:00 | B83: Odour | E83: Not Substantiated | G83: Operator | H83: N/A
A84: 2020-11-22T11:00:00 | B84: Noise | E84: Substantiated | G84: Operator | H84: N/A
A85: ** The Facility employed the services of an Olfactory consulting company who attended site on the 11th November 2020. They carried out an odour survey and produced a report detailing their findings and recommendations. The Facility is currently reviewing the report and will determine actions going forward. | E85: * including whether substantiated by the operator or the EA

Sheet Improvements
A1: =+'Cover Page'!$B$29 -> Annual Performance Report 2020 | E1: =+'Cover Page'!$B$33 -> Kent Enviropower Limited
A3: Summary of Plant Improvements
A5: Summary of any efficiency improvements that have been completed within the year.
A6: The Covid 19 situation has required all resource to be focused on plant operation and maintenance therefor no efficiency improvements have been completed in 2020.
A16: Summary of any permit improvement conditions that have been completed within the year and the resulting environmental benefits.
A17: No permit improvements required in 2020
A27: Summary of any changes to the plant or operating techniques which required a variation to the permit and a summary of the resulting environmental impact.
A28: No permit variations required.
A38: Summary of any other improvements made to the plant or planned to be made and a summary of the resulting environmental benefits.
A39: The facility is currently replacing its Continuous Emission Monitoring System (CEMS). This is planned to be fully operational by May 2021. The new CEMS will have full redundancy with each line having its own duty analyser and a back up if required.

Sheet Public Liasion
A1: =+'Cover Page'!$B$29 -> Annual Performance Report 2020 | E1: =+'Cover Page'!$B$33 -> Kent Enviropower Limited
A3: Details of Public & Stakeholder Liaison
A5: Summary of events held during the reporting year.
A6: Date | C6: Description
A7: 2020-01-07 | C7: The Facility has an active liaison group involving representatives from the following stakeholders: • Environment Agency • 10 Local Residents • Councillors Walker and Hammond (TMBC members) • Councillors Robertson, Harwood and Daley (MBC members). Cllr Daley is also a member of KCC. • Councillors Homewood and Bird (KCC members) • Maidstone Borough Council Environmental Health, Wilcock • Councillors Walker and Balcombe (Aylesford Parish Council) • Tonbridge & Malling & Maidstone Borough Council Environmental Health • Kent County Council Waste Management • Kent Enviropower The liaison group currently meets approx every 16 weeks. Additional meetings were required due to planning application for 4th Line and HWRC.
A8: 2020-02-04
A9: 2020-05-26
A10: 2020-06-23
A11: 2020-07-21
A12: 2020-11-03
A14: List of events planned for next year
A15: Date | C15: Description
A16: 2021-02-01 | C16: Please see above
A18: 2021-06-01
A20: 2021-10-01
A27: If you wish to be involved in the public liaison programme, please contact Brian White (Chairman) - Email: drbdwhite@yahoo.co.uk

Sheet Residue Quality
A1: =+'Cover Page'!$B$29 -> Annual Performance Report 2020 | E1: =+'Cover Page'!$B$33 -> Kent Enviropower Limited
A3: Residue Quality Monitoring Requirements
A5: Summary of monitoring undertaken and compliance
A6: Waste Description: Bottom Ash Parameter to be measured : TOC or LOI, Metals (Cd, Tl, Hg, Pb, Cr, Cu, Mn, Ni, As, Co, V, Sb, Zn) and their compounds and the total soluble fraction of these metals, dioxins/ furans and dioxin like PCB’s. Sampling and analysis as per Agency ash sampling protocol. Frequency: Quarterly (with the exception of the total soluble fraction which shall be sampled and analysed before the use of a new disposal or recycling route). Hazard assessment undertaken twice a month (24 samples a year)
A13: Commentary on any specific events
A14: Date & Event | C14: Description
A15: NA
A17: NA
A21: Residue Quality Monitoring Results
A22: Parameter (unit) | C22: Limit | D22: Normal Operation
D23: Bottom ash | F23: APC Residues
A24: Loss on Ignition (average %) | C24: <5% | D24: 1
A25: Total Organic Carbon (average %) | C25: <3% | D25: 0.7
A26: No. of Assessments Undertaken | C26: --- | D26: 4
A27: No. of Hazardous Results | C27: --- | D27: 0
A29: Comments :
A30: IBA is also subject to hazard assessment which is carried out twice a month and all samples have been returned non-hazardous for all 24 samples for 2020.

Sheet Water
A1: =+'Cover Page'!$B$29 -> Annual Performance Report 2020 | E1: =+'Cover Page'!$B$33 -> Kent Enviropower Limited
A3: Emissions to Water
A5: Summary of monitoring undertaken and compliance
A6: Parameters for which reports shall be made, in accordance with conditions of the Consent to the Discharge of Trade Effluent issued by Southern Water, are listed below and are measured monthly.
A13: Commentary on any specific events
A14: Date & Event | C14: Description
A15: N/A | C15: N/A
A17: N/A | C17: N/A
A19: N/A | C19: N/A
A22: Emissions to Water / Sewer
A23: Parameter | D23: Monitoring Frequency | G23: Limit | H23: Target | I23: Max. | J23: Average
A24: Arsenic | D24: monthly | G24: 1 | H24: 1 | I24: 0.04 | J24: 0.015
A25: COD shaken | D25: monthly | G25: 800 | H25: 800 | I25: 38 | J25: 23.08333333
A26: Chromium | D26: monthly | G26: 1 | H26: 1 | I26: 0.01 | J26: 0.01
A27: Copper | D27: monthly | G27: 1 | H27: 1 | I27: 0.01 | J27: 0.01
A28: Fluoride | D28: monthly | G28: 2 | H28: 2 | I28: 0.7 | J28: 0.3208333333
A29: Lead | D29: monthly | G29: 1 | H29: 1 | I29: 0.1 | J29: 0.0325
A30: Molybdenum | D30: monthly | G30: 1 | H30: 1 | I30: 0.01 | J30: 0.01
A31: Nickel | D31: monthly | G31: 1 | H31: 1 | I31: 0.01 | J31: 0.01
A32: Selenium | D32: monthly | G32: 1 | H32: 1 | I32: 0.01 | J32: 0.01
A33: Suspended solids | D33: monthly | G33: 200 | H33: 200 | I33: 44 | J33: 14.16666667
A34: Sulphate | D34: monthly | G34: 500 | H34: 500 | I34: 108 | J34: 50.75083333
A35: Zinc | D35: monthly | G35: 3 | H35: 3 | I35: 0.8 | J35: 0.165
A36: pH | D36: monthly | G36: 10 | H36: 10 | I36: 8.3 | J36: 7.233333333

Sheet Air (periodic)
A1: =+'Cover Page'!$B$29 -> Annual Performance Report 2020 | E1: =+'Cover Page'!$B$33 -> Kent Enviropower Limited
A3: Emissions to Air (periodically monitored)
A5: Summary of monitoring undertaken, standards used and compliance | M5: Notes:
A6: Parameters for which reports shall be made, in accordance with conditions of the Permit, are listed below and are measured every 6 months. | M6: Template may require adjustment for any bespoke monitoring requirements of permit.
A9: Results of emissions to air that are periodically monitored
A10: Substance | C10: Ref. Period | D10: Emission Limit Value | F10: Average | M10: User to add additional tables as necessary, depending on whether quarterly or bi-annual reporting is required for the compliance year
F11: A1 | G11: A2 | H11: A3 | I11: A4 | J11: A5
A12: Total Particulate Matter | C12: 1 hr | D12: 20 mg/m3 | F12: 2 | G12: 1.14 | H12: 1.685
A13: Ammonia | C13: 1 hr | D13: None set mg/m3 | F13: 0.44 | G13: 0.072 | H13: 0.127
A14: Cadmium & Thallium | C14: 1 hr | D14: 0.05 mg/m3 | F14: 0.001 | G14: 0.0012 | H14: 0.00155
A15: Heavy Metals | C15: 1 hr | D15: 0.5 mg/m3 | F15: 0.026 | G15: 0.0455 | H15: 0.1025
A16: Mercury | C16: 1 hr | D16: 0.05 mg/m3 | F16: 0.001 | G16: 0.0013 | H16: 0.000705
A17: Sulphur Dioxide | C17: 1 hr | D17: 200 mg/m3 | F17: 0.04 | G17: 0.985 | H17: 0.1295
A18: Hydrogen Chloride | C18: 1 hr | D18: 30 mg/m3 | F18: 7.3 | G18: 5.45 | H18: 5.3
A19: Hydrogen Fluoride | C19: 1 hr | D19: 1 mg/m3 | F19: 0.04 | G19: 0.0565 | H19: 0.0435
A20: Total VOCs (as Carbon) | C20: 4 hrs | D20: 20 mg/m3 | F20: 0.38 | G20: 0.42 | H20: 0.645
A21: Oxides of Nitrogen (as NO2) | C21: 4 hrs | D21: 400 mg/m3 | F21: 173 | G21: 171.25 | H21: 217
A22: Carbon Monoxide | C22: 4 hrs | D22: 150 mg/m3 | F22: 4.7 | G22: 3.5 | H22: 3.7
A23: Nitrous Oxide | C23: 4 hrs | D23: None set mg/m3 | F23: 25.3 | G23: 13.25 | H23: 13.78
A24: Dioxins / furans (I-TEQ)6 | C24: 6 hrs | D24: 0.1 µg/m3 | F24: 0.00991 | G24: 0.007075 | H24: 0.02285
A25: Dioxins / furans (WHO-TEQ Humans / Mammals) 6 | C25: 6 hrs | D25: None set µg/m3 | F25: 0.00938 | G25: 0.025525 | H25: 0.02065
A26: Dioxins / furans (WHO-TEQ Fish) 6 | C26: 6 hrs | D26: None set µg/m3 | F26: 0.00846 | G26: 0.00618 | H26: 0.02095
A27: Dioxins / furans (WHO-TEQ Birds) 6 | C27: 6 hrs | D27: None set µg/m3 | F27: 0.01162 | G27: 0.009045 | H27: 0.03455
A28: Dioxin-like PCBs (WHO-TEQ Humans / Mammals)6 | C28: 6 hrs | D28: None set µg/m3 | F28: 0.00037 | G28: 0.0003885 | H28: 0.00099
A29: Dioxin-like PCBs (WHO-TEQ Fish)6 | C29: 6 hrs | D29: None set µg/m3 | F29: 1.6e-05 | G29: 1.9e-05 | H29: 4.65e-05
A30: Dioxin-like PCBs (WHO-TEQ Birds)6 | C30: 6 hrs | D30: None set µg/m3 | F30: 0.00096 | G30: 0.0011915 | H30: 0.001975
A31: PAHs (DEFRA 16) | C31: 6 hrs | D31: None set µg/m3 | F31: 1 | G31: 0.395 | H31: 0.181
A32: Anthanthrene | C32: 6 hrs | D32: None set µg/m3 | F32: 0.00075 | G32: 0.0009 | H32: 0.001045
A33: Benzo{a}anthracene | C33: 6 hrs | D33: None set µg/m3 | F33: 0.00272 | G33: 0.0012 | H33: 0.001045
A34: Benzo[b]fluoranthene | C34: 6 hrs | D34: None set µg/m3 | F34: 0.00362 | G34: 0.002 | H34: 0.001045
A35: Benzo[k]fluoranthene | C35: 6 hrs | D35: None set µg/m3 | F35: 0.00121 | G35: 0.001 | H35: 0.001045
A36: Benzo[b]naph(2,1-d}thiophene | C36: 6 hrs | D36: None set µg/m3 | F36: 0.00075 | G36: 0.0009 | H36: 0.001045
A37: Benzo[c]phenanthrene | C37: 6 hrs | D37: None set µg/m3 | F37: 0.00573 | G37: 0.0017 | H37: 0.001045
A38: Benzo[ghi]perylene | C38: 6 hrs | D38: None set µg/m3 | F38: 0.00075 | G38: 0.0009 | H38: 0.001045
A39: Benzo[a]pyrene | C39: 6 hrs | D39: None set µg/m3 | F39: 0.00075 | G39: 0.0009 | H39: 0.001045
A40: Cholanthrene | C40: 6 hrs | D40: None set µg/m3 | F40: 0.00075 | G40: 0.0009 | H40: 0.001045
A41: Chrysene | C41: 6 hrs | D41: None set µg/m3 | F41: 0.15841 | G41: 0.0063 | H41: 0.001145
A42: Cyclopenta(cd)pyrene | C42: 6 hrs | D42: None set µg/m3 | F42: 0.00075 | G42: 0.000585 | H42: 0.001045
A43: Dibenzo[ah]anthracene | C43: 6 hrs | D43: None set µg/m3 | F43: 0.08267 | G43: 0.0009 | H43: 0.001045
A44: Dibenzo[ai]pyrene | C44: 6 hrs | D44: None set µg/m3 | F44: 0.00075 | G44: 0.0009 | H44: 0.001045
A45: Fluoranthene | C45: 6 hrs | D45: None set µg/m3 | F45: 0.00075 | G45: 0.01535 | H45: 0.016675
A46: Indeno[1,2,3-cd]pyrene | C46: 6 hrs | D46: None set µg/m3 | F46: 0.00075 | G46: 0.0009 | H46: 0.001045
A47: Naphthalene | C47: 6 hrs | D47: None set µg/m3 | F47: 0.76744 | G47: 0.3595 | H47: 0.15179
A48: Comments :

Sheet Air (CEMS)
A1: =+'Cover Page'!$B$29 -> Annual Performance Report 2020 | I1: =+'Cover Page'!$B$33 -> Kent Enviropower Limited
A3: Emissions to Air (continuously monitored)
P4: Notes:
A5: Summary of monitoring undertaken, standards used and compliance | P5: Template may require adjustment for any bespoke monitoring requirements of permit
P6: Report to 2 decimal places, i.e. xx.xx%
A11: Results of emissions to air that are continuously monitored (maximum and average values for each line)
A12: Substance | B12: Reference Period | C12: Emission Limit Value | D12: A1 | F12: A2 | H12: A3 | J12: A4 | L12: A5
D13: Max. | E13: Avg. | F13: Max. | G13: Avg. | H13: Max. | I13: Avg. | J13: Max. | K13: Avg. | L13: Max. | M13: Avg.
A14: Oxides of nitrogen | B14: Daily mean | C14: 200 mg/m3 | D14: 200 | E14: 128.2 | F14: 183 | G14: 124.55 | H14: 180 | I14: 123.83
B15: ½ hourly mean | C15: 400 mg/m3 | D15: 446 | E15: 130.11 | F15: 366 | G15: 125.12 | H15: 286 | I15: 123.68
A16: Particulates | B16: Daily mean | C16: 10 mg/m3 | D16: 7.7 | E16: 2.817 | F16: 7.4 | G16: 1.55 | H16: 9.7 | I16: 3.66
B17: ½ hourly mean | C17: 30 mg/m3 | D17: 188.6 | E17: 2.89 | F17: 37.8 | G17: 1.6 | H17: 198.6 | I17: 3.73
A18: Total Organic Carbon | B18: Daily mean | C18: 10 mg/m3 | D18: 10 | E18: 0.94 | F18: 4.19 | G18: 0.45 | H18: 5.85 | I18: 0.669
B19: 97%ile in rolling year | C19: 10 mg/m3 | D19: 740.21 | E19: 1.15 | F19: 506.75 | G19: 0.646 | H19: 214.72 | I19: 0.854
A20: Hydrogen chloride | B20: Daily mean | C20: 10 mg/m3 | D20: 9.9 | E20: 5.27 | F20: 9.5 | G20: 4.65 | H20: 9.1 | I20: 3.97
B21: ½ hourly mean | C21: 60 mg/m3 | D21: 34.2 | E21: 5.18 | F21: 59.3 | G21: 4.6 | H21: 31.5 | I21: 4
A22: Sulphur dioxide | B22: Daily mean | C22: 50 mg/m3 | D22: 3.6 | E22: 0.98 | F22: 7.1 | G22: 0.522 | H22: 1.9 | I22: 0.293
B23: ½ hourly mean | C23: 200 mg/m3 | D23: 97 | E23: 1.01 | F23: 59.2 | G23: 0.596 | H23: 51.2 | I23: 0.332
A24: Carbon monoxide | B24: Daily mean | C24: 50 mg/m3 | D24: 27 | E24: 6.25 | F24: 35 | G24: 6.03 | H24: 26 | I24: 5.82
B25: ½ hourly mean * | C25: 100 mg/m3 * | D25: N/A | E25: N/A | F25: N/A | G25: N/A | H25: N/A | I25: N/A
B26: 95%ile 10-min avg * | C26: 150 mg/m3 * | D26: 3736 | E26: 7.12 | F26: 3648 | G26: 7.4 | H26: 3725 | I26: 7.35
A27: Ammonia | B27: Daily mean | C27: 10 mg/m3 | D27: 1.61 | E27: 0.65 | F27: 0.51 | G27: 0.21 | H27: 0.96 | I27: 0.59
A28: * = delete or amend as appropriate
A29: Comments :

Sheet HCl
A1: =+'Cover Page'!$B$29 -> Annual Performance Report 2020 | E1: =+'Cover Page'!$B$33 -> Kent Enviropower Limited
A3: Monitoring of Hydrogen Chloride emissions | D3: Whole Installation | G3: See Notes in Cell Q3 | J3: =+A3 -> Monitoring of Hydrogen Chloride emissions | N3: Per Combustion Line | Q3: Notes:
Q4: User to add logic to complete Whole installation, Table A5:G18. From the data in Per Combustion Line, Table J6:O79, subject to No. of lines installed
A5: mg/Nm3 | B5: 1/2 Hourly Reference Periods | E5: Daily Reference Periods
A6: =+'Cover Page'!C39 -> 2021 | B6: 1/2 hourly HCl ELV | C6: Monthly 1/2 hourly mean | D6: Highest 1/2 hourly maximum | E6: Daily HCl ELV | F6: Monthly daily mean | G6: Highest daily maximum | J6: =+A6 -> 2021 | K6: mg/Nm3 | L6: Monthly 1/2 hourly mean | M6: Monthly 1/2 hourly maximum | N6: Monthly daily mean | O6: Monthly daily maximum
A7: Jan | B7: 60 | C7: 3.53 | D7: 23 | E7: 10 | F7: 3.5 | G7: 7.1 | J7: A1 | K7: Jan | L7: 4.3 | M7: 12.8 | N7: 4.2 | O7: 7.1
A8: Feb | B8: 60 | C8: 5.1 | D8: 32.1 | E8: 10 | F8: 5.1 | G8: 9.9 | K8: Feb | L8: 6.9 | M8: 32.1 | N8: 7 | O8: 9.9
A9: Mar | B9: 60 | C9: 5.56 | D9: 59.3 | E9: 10 | F9: 5.5 | G9: 9 | K9: Mar | L9: 6.4 | M9: 29.3 | N9: 6.5 | O9: 8.5 | Q9: Whole Installation table A5:G18:
A10: Apr | B10: 60 | C10: 4.53 | D10: 20.4 | E10: 10 | F10: 4.5 | G10: 8.3 | K10: Apr | L10: 5.3 | M10: 18.7 | N10: 5.4 | O10: 8.3 | Q10: Mean: for 1/2 hourly and daily periods calculate mean of values across all operational combustion lines for the month
A11: May | B11: 60 | C11: 3.96 | D11: 17.5 | E11: 10 | F11: 4 | G11: 7.7 | K11: May | L11: 4.5 | M11: 17.5 | N11: 4.5 | O11: 5.9
A12: Jun | B12: 60 | C12: 5.6 | D12: 37.4 | E12: 10 | F12: 5.76 | G12: 8 | K12: Jun | L12: 6.8 | M12: 27.6 | N12: 7.2 | O12: 8
A13: Jul | B13: 60 | C13: 6 | D13: 34.2 | E13: 10 | F13: 6 | G13: 9.5 | K13: Jul | L13: 6.1 | M13: 34.2 | N13: 6.2 | O13: 8.2 | Q13: Maximum: for 1/2 hourly and daily periods use the highest value across all operational combustion lines for the month
A14: Aug | B14: 60 | C14: 4.26 | D14: 20.5 | E14: 10 | F14: 4.33 | G14: 7 | K14: Aug | L14: 3.8 | M14: 20.5 | N14: 3.9 | O14: 5.6
A15: Sep | B15: 60 | C15: 4.5 | D15: 14.6 | E15: 10 | F15: 4.83 | G15: 7.2 | K15: Sep | L15: 3.5 | M15: 13.7 | N15: 3.9 | O15: 6
A16: Oct | B16: 60 | C16: 3.16 | D16: 31.9 | E16: 10 | F16: 2.166 | G16: 6.7 | K16: Oct | L16: 4 | M16: 30.7 | N16: 3.6 | O16: 6.7
A17: Nov | B17: 60 | C17: 5.46 | D17: 27.6 | E17: 10 | F17: 5.3 | G17: 9.1 | K17: Nov | L17: 7.1 | M17: 27.6 | N17: 6.6 | O17: 6.7
A18: Dec | B18: 60 | C18: 3.23 | D18: 31.5 | E18: 10 | F18: 3.2 | G18: 7.4 | K18: Dec | L18: 2.7 | M18: 24.3 | N18: 2.8 | O18: 7.4
K19: Annual | L19: =AVERAGE(L7:L18) -> 5.116666667 | M19: =MAX(M7:M18) -> 34.2 | N19: =AVERAGE(N7:N18) -> 5.15 | O19: =MAX(O7:O18) -> 9.9
J21: =+A6 -> 2021 | K21: mg/Nm3 | L21: Monthly 1/2 hourly mean | M21: Monthly 1/2 hourly maximum | N21: Monthly daily mean | O21: Monthly daily maximum
J22: A2 | K22: Jan | L22: 3.3 | M22: 23 | N22: 3.3 | O22: 4.7
K23: Feb | L23: 4.4 | M23: 23.3 | N23: 4.4 | O23: 7.6
K24: Mar | L24: 5.1 | M24: 59.3 | N24: 5.1 | O24: 7.3
K25: Apr | L25: 4.3 | M25: 20.4 | N25: 4.2 | O25: 6.5
K26: May | L26: 4 | M26: 13.1 | N26: 4.1 | O26: 6.8
K27: Jun | L27: 5.6 | M27: 37.4 | N27: 5.7 | O27: 7.3
K28: Jul | L28: 7.5 | M28: 27 | N28: 7.7 | O28: 9.5
K29: Aug | L29: 5.5 | M29: 18.9 | N29: 5.6 | O29: 7
K30: Sep | L30: 6.3 | M30: 12.3 | N30: 6.7 | O30: 7.2
K31: Oct | L31: 2.9 | M31: 31.9 | N31: 2.9 | O31: 5
K32: Nov | L32: 3.3 | M32: 14.7 | N32: 3.3 | O32: 4.8
K33: Dec | L33: 3.6 | M33: 20.3 | N33: 3.4 | O33: 5.1
K34: Annual | L34: =AVERAGE(L22:L33) -> 4.65 | M34: =MAX(M22:M33) -> 59.3 | N34: =AVERAGE(N22:N33) -> 4.7 | O34: =MAX(O22:O33) -> 9.5
J36: =+A6 -> 2021 | K36: mg/Nm3 | L36: Monthly 1/2 hourly mean | M36: Monthly 1/2 hourly maximum | N36: Monthly daily mean | O36: Monthly daily maximum
J37: A3 | K37: Jan | L37: 3 | M37: 9.1 | N37: 3 | O37: 4
K38: Feb | L38: 4 | M38: 13.3 | N38: 3.9 | O38: 6.4
K39: Mar | L39: 5.2 | M39: 12.9 | N39: 4.9 | O39: 9
K40: Apr | L40: 4 | M40: 10.3 | N40: 3.9 | O40: 6.2
K41: May | L41: 3.4 | M41: 11.1 | N41: 3.4 | O41: 7.7
K42: Jun | L42: 4.4 | M42: 19.7 | N42: 4.4 | O42: 7.9
K43: Jul | L43: 4.4 | M43: 18.2 | N43: 4.1 | O43: 8
K44: Aug | L44: 3.5 | M44: 8.6 | N44: 3.5 | O44: 4.7
K45: Sep | L45: 3.7 | M45: 14.6 | N45: 3.9 | O45: 5.9
K46: Oct | L46: 2.6 | M46: 4.2 | N46: 0 | O46: 0
K47: Nov | L47: 6 | M47: 18.8 | N47: 6 | O47: 9.1
A48: Comments : | K48: Dec | L48: 3.4 | M48: 31.5 | N48: 3.4 | O48: 6.7
K49: Annual | L49: =AVERAGE(L37:L48) -> 3.966666667 | M49: =MAX(M37:M48) -> 31.5 | N49: =AVERAGE(N37:N48) -> 3.7 | O49: =MAX(O37:O48) -> 9.1
J51: =+A6 -> 2021 | K51: mg/Nm3 | L51: Monthly 1/2 hourly mean | M51: Monthly 1/2 hourly maximum | N51: Monthly daily mean | O51: Monthly daily maximum
J52: A4 | K52: Jan
K53: Feb
K54: Mar
K55: Apr
K56: May
K57: Jun
K58: Jul
K59: Aug
K60: Sep
K61: Oct
K62: Nov
K63: Dec
K64: Annual | L64: =AVERAGE(L52:L63) ->  | M64: =MAX(M52:M63) -> 0 | N64: =AVERAGE(N52:N63) ->  | O64: =MAX(O52:O63) -> 0
J66: =+A6 -> 2021 | K66: mg/Nm3 | L66: Monthly 1/2 hourly mean | M66: Monthly 1/2 hourly maximum | N66: Monthly daily mean | O66: Monthly daily maximum
J67: A5 | K67: Jan
K68: Feb
K69: Mar
K70: Apr
K71: May
K72: Jun
K73: Jul
K74: Aug
K75: Sep
K76: Oct
K77: Nov
K78: Dec
K79: Annual | L79: =AVERAGE(L67:L78) ->  | M79: =MAX(M67:M78) -> 0 | N79: =AVERAGE(N67:N78) ->  | O79: =MAX(O67:O78) -> 0

Sheet SO2
A1: =+'Cover Page'!$B$29 -> Annual Performance Report 2020 | E1: =+'Cover Page'!$B$33 -> Kent Enviropower Limited
A3: Monitoring of Sulphur dioxide emissions | D3: Whole Installation | G3: See Notes in Cell Q3 | J3: =+A3 -> Monitoring of Sulphur dioxide emissions | N3: Per Combustion Line | Q3: Notes:
Q4: User to add logic to complete Whole installation, Table A5:G18. From the data in Per Combustion Line, Table J6:O79, subject to No. of lines installed
A5: mg/Nm3 | B5: 1/2 Hourly Reference Periods | E5: Daily Reference Periods
A6: =+'Cover Page'!C39 -> 2021 | B6: 1/2 hourly SO2 ELV | C6: Monthly 1/2 hourly mean | D6: Highest 1/2 hourly maximum | E6: Daily SO2 ELV | F6: Monthly daily mean | G6: Highest daily maximum | J6: =+A6 -> 2021 | K6: mg/Nm3 | L6: Monthly 1/2 hourly mean | M6: Monthly 1/2 hourly maximum | N6: Monthly daily mean | O6: Monthly daily maximum
A7: Jan | B7: 200 | C7: 0.66 | D7: 10.3 | E7: 50 | F7: 0.66 | G7: 2.2 | J7: A1 | K7: Jan | L7: 1.4 | M7: 10.3 | N7: 1.4 | O7: 2.2
A8: Feb | B8: 200 | C8: 0.73 | D8: 10.3 | E8: 50 | F8: 0.73 | G8: 2.1 | K8: Feb | L8: 1.5 | M8: 7.8 | N8: 1.5 | O8: 2.1
A9: Mar | B9: 200 | C9: 0.46 | D9: 74.4 | E9: 50 | F9: 0.4 | G9: 1.4 | K9: Mar | L9: 0.6 | M9: 74.4 | N9: 0.5 | O9: 1.4 | Q9: Whole Installation table A5:G18:
A10: Apr | B10: 200 | C10: 0.2 | D10: 20.6 | E10: 50 | F10: 0.2 | G10: 2.6 | K10: Apr | L10: 0.3 | M10: 8.4 | N10: 0.3 | O10: 2.6 | Q10: Mean: for 1/2 hourly and daily periods calculate mean of values across all operational combustion lines for the month
A11: May | B11: 200 | C11: 0.3 | D11: 11.3 | E11: 50 | F11: 0.26 | G11: 0.9 | K11: May | L11: 0.3 | M11: 6.5 | N11: 0.3 | O11: 0.7
A12: Jun | B12: 200 | C12: 0.26 | D12: 12.4 | E12: 50 | F12: 0.3 | G12: 1.1 | K12: Jun | L12: 0.3 | M12: 9.4 | N12: 0.4 | O12: 0.9
A13: Jul | B13: 200 | C13: 0.56 | D13: 41.9 | E13: 50 | F13: 0.53 | G13: 7.1 | K13: Jul | L13: 0.4 | M13: 41.9 | N13: 0.4 | O13: 1.1 | Q13: Maximum: for 1/2 hourly and daily periods use the highest value across all operational combustion lines for the month
A14: Aug | B14: 200 | C14: 0.9 | D14: 18.2 | E14: 50 | F14: 0.9 | G14: 3.2 | K14: Aug | L14: 1.6 | M14: 8.3 | N14: 1.7 | O14: 3.2
A15: Sep | B15: 200 | C15: 1.03 | D15: 19.9 | E15: 50 | F15: 0.96 | G15: 3.1 | K15: Sep | L15: 2.1 | M15: 8 | N15: 2.1 | O15: 3.1
A16: Oct | B16: 200 | C16: 1.7 | D16: 97 | E16: 50 | F16: 1 | G16: 2.9 | K16: Oct | L16: 2.4 | M16: 97 | N16: 2.2 | O16: 2.9
A17: Nov | B17: 200 | C17: 1.23 | D17: 49.3 | E17: 50 | F17: 1.3 | G17: 2.4 | K17: Nov | L17: 2.1 | M17: 10.3 | N17: 2.3 | O17: 2.4
A18: Dec | B18: 200 | C18: 0.96 | D18: 51.2 | E18: 50 | F18: 0.73 | G18: 3.6 | K18: Dec | L18: 1.5 | M18: 20.4 | N18: 1.5 | O18: 3.6
K19: Annual | L19: =AVERAGE(L7:L18) -> 1.208333333 | M19: =MAX(M7:M18) -> 97 | N19: =AVERAGE(N7:N18) -> 1.216666667 | O19: =MAX(O7:O18) -> 3.6
J21: =+A6 -> 2021 | K21: mg/Nm3 | L21: Monthly 1/2 hourly mean | M21: Monthly 1/2 hourly maximum | N21: Monthly daily mean | O21: Monthly daily maximum
J22: A2 | K22: Jan | L22: 0.4 | M22: 8.7 | N22: 0.4 | O22: 0.9
K23: Feb | L23: 0.4 | M23: 9.2 | N23: 0.4 | O23: 0.9
K24: Mar | L24: 0.5 | M24: 35.2 | N24: 0.5 | O24: 1.2
K25: Apr | L25: 0.2 | M25: 10.5 | N25: 0.2 | O25: 1
K26: May | L26: 0.4 | M26: 7.8 | N26: 0.4 | O26: 0.9
K27: Jun | L27: 0.3 | M27: 9.2 | N27: 0.3 | O27: 1.1
K28: Jul | L28: 1 | M28: 14.4 | N28: 1 | O28: 7.1
K29: Aug | L29: 0.8 | M29: 18.2 | N29: 0.8 | O29: 3.1
K30: Sep | L30: 0.3 | M30: 9.5 | N30: 0.3 | O30: 0.5
K31: Oct | L31: 1.3 | M31: 59.2 | N31: 0.8 | O31: 1.3
K32: Nov | L32: 0.8 | M32: 21.7 | N32: 0.8 | O32: 1.6
K33: Dec | L33: 0.9 | M33: 29.5 | N33: 0.3 | O33: 0.8
K34: Annual | L34: =AVERAGE(L22:L33) -> 0.6083333333 | M34: =MAX(M22:M33) -> 59.2 | N34: =AVERAGE(N22:N33) -> 0.5166666667 | O34: =MAX(O22:O33) -> 7.1
J36: =+A6 -> 2021 | K36: mg/Nm3 | L36: Monthly 1/2 hourly mean | M36: Monthly 1/2 hourly maximum | N36: Monthly daily mean | O36: Monthly daily maximum
J37: A3 | K37: Jan | L37: 0.2 | M37: 6.6 | N37: 0.2 | O37: 0.7
K38: Feb | L38: 0.3 | M38: 10.3 | N38: 0.3 | O38: 0.6
K39: Mar | L39: 0.3 | M39: 11 | N39: 0.2 | O39: 0.3
K40: Apr | L40: 0.1 | M40: 20.6 | N40: 0.1 | O40: 0.4
K41: May | L41: 0.2 | M41: 11.3 | N41: 0.1 | O41: 0.5
K42: Jun | L42: 0.2 | M42: 12.4 | N42: 0.2 | O42: 0.6
K43: Jul | L43: 0.3 | M43: 35.9 | N43: 0.2 | O43: 0.7
K44: Aug | L44: 0.3 | M44: 12.3 | N44: 0.2 | O44: 0.5
K45: Sep | L45: 0.7 | M45: 19.9 | N45: 0.5 | O45: 0.8
K46: Oct | L46: 1.4 | M46: 13.3 | N46: 0 | O46: 0
K47: Nov | L47: 0.8 | M47: 49.3 | N47: 0.8 | O47: 1.9
A48: Comments : | K48: Dec | L48: 0.5 | M48: 51.2 | N48: 0.4 | O48: 1.4
K49: Annual | L49: =AVERAGE(L37:L48) -> 0.4416666667 | M49: =MAX(M37:M48) -> 51.2 | N49: =AVERAGE(N37:N48) -> 0.2666666667 | O49: =MAX(O37:O48) -> 1.9
J51: =+A6 -> 2021 | K51: mg/Nm3 | L51: Monthly 1/2 hourly mean | M51: Monthly 1/2 hourly maximum | N51: Monthly daily mean | O51: Monthly daily maximum
J52: A4 | K52: Jan
K53: Feb
K54: Mar
K55: Apr
K56: May
K57: Jun
K58: Jul
K59: Aug
K60: Sep
K61: Oct
K62: Nov
K63: Dec
K64: Annual | L64: =AVERAGE(L52:L63) ->  | M64: =MAX(M52:M63) -> 0 | N64: =AVERAGE(N52:N63) ->  | O64: =MAX(O52:O63) -> 0
J66: =+A6 -> 2021 | K66: mg/Nm3 | L66: Monthly 1/2 hourly mean | M66: Monthly 1/2 hourly maximum | N66: Monthly daily mean | O66: Monthly daily maximum
J67: A5 | K67: Jan
K68: Feb
K69: Mar
K70: Apr
K71: May
K72: Jun
K73: Jul
K74: Aug
K75: Sep
K76: Oct
K77: Nov
K78: Dec
K79: Annual | L79: =AVERAGE(L67:L78) ->  | M79: =MAX(M67:M78) -> 0 | N79: =AVERAGE(N67:N78) ->  | O79: =MAX(O67:O78) -> 0

Sheet NOx
A1: =+'Cover Page'!$B$29 -> Annual Performance Report 2020 | E1: =+'Cover Page'!$B$33 -> Kent Enviropower Limited
A3: Monitoring of Oxides of Nitrogen emissions | D3: Whole Installation | G3: See Notes in Cell Q3 | J3: =+A3 -> Monitoring of Oxides of Nitrogen emissions | N3: Per Combustion Line | Q3: Notes:
Q4: User to add logic to complete Whole installation, Table A5:G18. From the data in Per Combustion Line, Table J6:O79, subject to No. of lines installed
A5: mg/Nm3 | B5: 1/2 Hourly Reference Periods | E5: Daily Reference Periods
A6: =+'Cover Page'!C39 -> 2021 | B6: 1/2 hourly NOx ELV | C6: Monthly 1/2 hourly mean | D6: Highest 1/2 hourly maximum | E6: Daily NOx ELV | F6: Monthly daily mean | G6: Highest daily maximum | J6: =+A6 -> 2021 | K6: mg/Nm3 | L6: Monthly 1/2 hourly mean | M6: Monthly 1/2 hourly maximum | N6: Monthly daily mean | O6: Monthly daily maximum
A7: Jan | B7: 400 | C7: 109.33 | D7: 246 | E7: 200 | F7: 109.66 | G7: 129 | J7: A1 | K7: Jan | L7: 110 | M7: 246 | N7: 110 | O7: 118
A8: Feb | B8: 400 | C8: 109.33 | D8: 343 | E8: 200 | F8: 109.33 | G8: 127 | K8: Feb | L8: 115 | M8: 343 | N8: 115 | O8: 145
A9: Mar | B9: 400 | C9: 115.66 | D9: 357 | E9: 200 | F9: 115 | G9: 150 | K9: Mar | L9: 120 | M9: 357 | N9: 118 | O9: 150 | Q9: Whole Installation table A5:G18:
A10: Apr | B10: 400 | C10: 115 | D10: 294 | E10: 200 | F10: 115.33 | G10: 134 | K10: Apr | L10: 118 | M10: 294 | N10: 118 | O10: 134 | Q10: Mean: for 1/2 hourly and daily periods calculate mean of values across all operational combustion lines for the month
A11: May | B11: 400 | C11: 119.66 | D11: 359 | E11: 200 | F11: 119.66 | G11: 161 | K11: May | L11: 124 | M11: 359 | N11: 124 | O11: 143
A12: Jun | B12: 400 | C12: 129 | D12: 444 | E12: 200 | F12: 128.66 | G12: 153 | K12: Jun | L12: 136 | M12: 444 | N12: 135 | O12: 153
A13: Jul | B13: 400 | C13: 126.66 | D13: 272 | E13: 200 | F13: 125.66 | G13: 180 | K13: Jul | L13: 131 | M13: 245 | N13: 130 | O13: 160 | Q13: Maximum: for 1/2 hourly and daily periods use the highest value across all operational combustion lines for the month
A14: Aug | B14: 400 | C14: 129.33 | D14: 366 | E14: 200 | F14: 130.33 | G14: 151 | K14: Aug | L14: 132 | M14: 300 | N14: 132 | O14: 147
A15: Sep | B15: 400 | C15: 133.33 | D15: 446 | E15: 200 | F15: 130.66 | G15: 200 | K15: Sep | L15: 157 | M15: 446 | N15: 150 | O15: 200
A16: Oct | B16: 400 | C16: 138 | D16: 345 | E16: 200 | F16: 102.33 | G16: 174 | K16: Oct | L16: 156 | M16: 335 | N16: 154 | O16: 174
A17: Nov | B17: 400 | C17: 143.66 | D17: 394 | E17: 200 | F17: 138.33 | G17: 183 | K17: Nov | L17: 130 | M17: 394 | N17: 113 | O17: 118
A18: Dec | B18: 400 | C18: 161 | D18: 393 | E18: 200 | F18: 161.33 | G18: 195 | K18: Dec | L18: 174 | M18: 393 | N18: 175 | O18: 195
K19: Annual | L19: =AVERAGE(L7:L18) -> 133.5833333 | M19: =MAX(M7:M18) -> 446 | N19: =AVERAGE(N7:N18) -> 131.1666667 | O19: =MAX(O7:O18) -> 200
J21: =+A6 -> 2021 | K21: mg/Nm3 | L21: Monthly 1/2 hourly mean | M21: Monthly 1/2 hourly maximum | N21: Monthly daily mean | O21: Monthly daily maximum
J22: A2 | K22: Jan | L22: 109 | M22: 147 | N22: 110 | O22: 128
K23: Feb | L23: 104 | M23: 194 | N23: 104 | O23: 117
K24: Mar | L24: 108 | M24: 185 | N24: 108 | O24: 122
K25: Apr | L25: 113 | M25: 241 | N25: 113 | O25: 129
K26: May | L26: 122 | M26: 272 | N26: 123 | O26: 161
K27: Jun | L27: 125 | M27: 180 | N27: 125 | O27: 107
K28: Jul | L28: 119 | M28: 272 | N28: 117 | O28: 140
K29: Aug | L29: 121 | M29: 366 | N29: 123 | O29: 148
K30: Sep | L30: 119 | M30: 310 | N30: 117 | O30: 124
K31: Oct | L31: 152 | M31: 345 | N31: 153 | O31: 172
K32: Nov | L32: 153 | M32: 331 | N32: 153 | O32: 185
K33: Dec | L33: 168 | M33: 217 | N33: 167 | O33: 183
K34: Annual | L34: =AVERAGE(L22:L33) -> 126.0833333 | M34: =MAX(M22:M33) -> 366 | N34: =AVERAGE(N22:N33) -> 126.0833333 | O34: =MAX(O22:O33) -> 185
J36: =+A6 -> 2021 | K36: mg/Nm3 | L36: Monthly 1/2 hourly mean | M36: Monthly 1/2 hourly maximum | N36: Monthly daily mean | O36: Monthly daily maximum
J37: A3 | K37: Jan | L37: 109 | M37: 146 | N37: 109 | O37: 129
K38: Feb | L38: 109 | M38: 220 | N38: 109 | O38: 127
K39: Mar | L39: 119 | M39: 172 | N39: 119 | O39: 135
K40: Apr | L40: 114 | M40: 165 | N40: 115 | O40: 129
K41: May | L41: 113 | M41: 180 | N41: 112 | O41: 133
K42: Jun | L42: 126 | M42: 181 | N42: 126 | O42: 150
K43: Jul | L43: 130 | M43: 211 | N43: 130 | O43: 180
K44: Aug | L44: 135 | M44: 286 | N44: 136 | O44: 151
K45: Sep | L45: 124 | M45: 217 | N45: 125 | O45: 155
K46: Oct | L46: 106 | M46: 124 | N46: 0 | O46: 0
K47: Nov | L47: 148 | M47: 247 | N47: 149 | O47: 176
A48: Comments : | K48: Dec | L48: 141 | M48: 203 | N48: 142 | O48: 177
K49: Annual | L49: =AVERAGE(L37:L48) -> 122.8333333 | M49: =MAX(M37:M48) -> 286 | N49: =AVERAGE(N37:N48) -> 114.3333333 | O49: =MAX(O37:O48) -> 180
J51: =+A6 -> 2021 | K51: mg/Nm3 | L51: Monthly 1/2 hourly mean | M51: Monthly 1/2 hourly maximum | N51: Monthly daily mean | O51: Monthly daily maximum
J52: A4 | K52: Jan
K53: Feb
K54: Mar
K55: Apr
K56: May
K57: Jun
K58: Jul
K59: Aug
K60: Sep
K61: Oct
K62: Nov
K63: Dec
K64: Annual | L64: =AVERAGE(L52:L63) ->  | M64: =MAX(M52:M63) -> 0 | N64: =AVERAGE(N52:N63) ->  | O64: =MAX(O52:O63) -> 0
J66: =+A6 -> 2021 | K66: mg/Nm3 | L66: Monthly 1/2 hourly mean | M66: Monthly 1/2 hourly maximum | N66: Monthly daily mean | O66: Monthly daily maximum
J67: A5 | K67: Jan
K68: Feb
K69: Mar
K70: Apr
K71: May
K72: Jun
K73: Jul
K74: Aug
K75: Sep
K76: Oct
K77: Nov
K78: Dec
K79: Annual | L79: =AVERAGE(L67:L78) ->  | M79: =MAX(M67:M78) -> 0 | N79: =AVERAGE(N67:N78) ->  | O79: =MAX(O67:O78) -> 0

Sheet TOC
A1: =+'Cover Page'!$B$29 -> Annual Performance Report 2020 | E1: =+'Cover Page'!$B$33 -> Kent Enviropower Limited
A3: Monitoring of Total organic carbon emissions | D3: Whole Installation | G3: See Notes in Cell Q3 | J3: =+A3 -> Monitoring of Total organic carbon emissions | N3: Per Combustion Line | Q3: Notes:
Q4: User to add logic to complete Whole installation, Table A5:G18. From the data in Per Combustion Line, Table J6:O79, subject to No. of lines installed
A5: mg/Nm3 | B5: 1/2 Hourly Reference Periods | E5: Daily Reference Periods
A6: =+'Cover Page'!C39 -> 2021 | B6: 1/2 hourly TOC ELV | C6: Monthly 1/2 hourly mean | D6: Highest 1/2 hourly maximum | E6: Daily TOC ELV | F6: Monthly daily mean | G6: Highest daily maximum | J6: =+A6 -> 2021 | K6: mg/Nm3 | L6: Monthly 1/2 hourly mean | M6: Monthly 1/2 hourly maximum | N6: Monthly daily mean | O6: Monthly daily maximum
A7: Jan | B7: 10 | C7: 0.48 | D7: 30 | E7: 10 | F7: 0.46 | G7: 2.31 | J7: A1 | K7: Jan | L7: 0.76 | M7: 3.39 | N7: 0.71 | O7: 2.31
A8: Feb | B8: 10 | C8: 0.63 | D8: 29.11 | E8: 10 | F8: 0.61 | G8: 2.16 | K8: Feb | L8: 0.65 | M8: 27.46 | N8: 0.67 | O8: 2.16
A9: Mar | B9: 10 | C9: 1.08 | D9: 740.21 | E9: 10 | F9: 0.69 | G9: 4.19 | K9: Mar | L9: 1.42 | M9: 740.21 | N9: 0.88 | O9: 3.02 | Q9: Whole Installation table A5:G18:
A10: Apr | B10: 10 | C10: 0.47 | D10: 109.22 | E10: 10 | F10: 0.45 | G10: 2.6 | K10: Apr | L10: 0.51 | M10: 30.39 | N10: 0.52 | O10: 1063 | Q10: Mean: for 1/2 hourly and daily periods calculate mean of values across all operational combustion lines for the month
A11: May | B11: 10 | C11: 0.63 | D11: 46.3 | E11: 10 | F11: 0.55 | G11: 1.49 | K11: May | L11: 0.67 | M11: 24.14 | N11: 0.65 | O11: 1.49
A12: Jun | B12: 10 | C12: 0.7 | D12: 111.7 | E12: 10 | F12: 0.72 | G12: 3.59 | K12: Jun | L12: 1.32 | M12: 111.7 | N12: 1.39 | O12: 3.57
A13: Jul | B13: 10 | C13: 0.82 | D13: 211.31 | E13: 10 | F13: 0.52 | G13: 3.43 | K13: Jul | L13: 0.96 | M13: 59.37 | N13: 0.9 | O13: 2.42 | Q13: Maximum: for 1/2 hourly and daily periods use the highest value across all operational combustion lines for the month
A14: Aug | B14: 10 | C14: 0.96 | D14: 60.18 | E14: 10 | F14: 0.74 | G14: 2.76 | K14: Aug | L14: 0.94 | M14: 60.18 | N14: 0.92 | O14: 2.76
A15: Sep | B15: 10 | C15: 1.12 | D15: 134.13 | E15: 10 | F15: 0.87 | G15: 2.92 | K15: Sep | L15: 1.2 | M15: 37.79 | N15: 1.34 | O15: 2.92
A16: Oct | B16: 10 | C16: 4.1 | D16: 506.75 | E16: 10 | F16: 1.46 | G16: 10 | K16: Oct | L16: 4.19 | M16: 273.05 | N16: 2.96 | O16: 10
A17: Nov | B17: 10 | C17: 1.53 | D17: 58.81 | E17: 10 | F17: 1.16 | G17: 2.54 | K17: Nov | L17: 2.7 | M17: 53.04 | N17: 1.58 | O17: 1.72
A18: Dec | B18: 10 | C18: 0.88 | D18: 214.72 | E18: 10 | F18: 0.66 | G18: 5.82 | K18: Dec | L18: 0.96 | M18: 12.43 | N18: 0.92 | O18: 2.35
K19: Annual | L19: =AVERAGE(L7:L18) -> 1.356666667 | M19: =MAX(M7:M18) -> 740.21 | N19: =AVERAGE(N7:N18) -> 1.12 | O19: =MAX(O7:O18) -> 1063
J21: =+A6 -> 2021 | K21: mg/Nm3 | L21: Monthly 1/2 hourly mean | M21: Monthly 1/2 hourly maximum | N21: Monthly daily mean | O21: Monthly daily maximum
J22: A2 | K22: Jan | L22: 0.19 | M22: 15.52 | N22: 0.18 | O22: 0.64
K23: Feb | L23: 0.31 | M23: 29.11 | N23: 0.29 | O23: 0.76
K24: Mar | L24: 0.41 | M24: 153.95 | N24: 0.43 | O24: 4.19
K25: Apr | L25: 0.4 | M25: 36.34 | N25: 0.35 | O25: 1.17
K26: May | L26: 0.59 | M26: 17.03 | N26: 0.54 | O26: 1.41
K27: Jun | L27: 0.29 | M27: 26.45 | N27: 0.26 | O27: 1.4
K28: Jul | L28: 0.47 | M28: 50.49 | N28: 0.39 | O28: 3.43
K29: Aug | L29: 1.15 | M29: 46.82 | N29: 0.91 | O29: 2.32
K30: Sep | L30: 0.5 | M30: 10.99 | N30: 0.5 | O30: 1.11
K31: Oct | L31: 3.89 | M31: 506.75 | N31: 1.43 | O31: 3.08
K32: Nov | L32: 0.8 | M32: 58.81 | N32: 0.8 | O32: 2.38
K33: Dec | L33: 0.62 | M33: 152.55 | N33: 0.25 | O33: 1.25
K34: Annual | L34: =AVERAGE(L22:L33) -> 0.8016666667 | M34: =MAX(M22:M33) -> 506.75 | N34: =AVERAGE(N22:N33) -> 0.5275 | O34: =MAX(O22:O33) -> 4.19
J36: =+A6 -> 2021 | K36: mg/Nm3 | L36: Monthly 1/2 hourly mean | M36: Monthly 1/2 hourly maximum | N36: Monthly daily mean | O36: Monthly daily maximum
J37: A3 | K37: Jan | L37: 0.49 | M37: 30 | N37: 0.49 | O37: 1.24
K38: Feb | L38: 0.93 | M38: 27.63 | N38: 0.88 | O38: 1.51
K39: Mar | L39: 1.41 | M39: 98.43 | N39: 0.76 | O39: 1.65
K40: Apr | L40: 0.51 | M40: 109.22 | N40: 0.5 | O40: 2.6
K41: May | L41: 0.64 | M41: 46.3 | N41: 0.47 | O41: 1.3
K42: Jun | L42: 0.51 | M42: 32.53 | N42: 0.51 | O42: 1.45
K43: Jul | L43: 1.03 | M43: 211.31 | N43: 0.27 | O43: 1.97
K44: Aug | L44: 0.81 | M44: 52.65 | N44: 0.39 | O44: 0.64
K45: Sep | L45: 1.68 | M45: 134.13 | N45: 0.78 | O45: 1.93
K46: Oct | L46: 4.23 | M46: 33.4 | N46: 0 | O46: 0
K47: Nov | L47: 1.1 | M47: 48.52 | N47: 1.11 | O47: 2.54
A48: Comments : | K48: Dec | L48: 1.08 | M48: 214.72 | N48: 0.82 | O48: 5.82
K49: Annual | L49: =AVERAGE(L37:L48) -> 1.201666667 | M49: =MAX(M37:M48) -> 214.72 | N49: =AVERAGE(N37:N48) -> 0.5816666667 | O49: =MAX(O37:O48) -> 5.82
J51: =+A6 -> 2021 | K51: mg/Nm3 | L51: Monthly 1/2 hourly mean | M51: Monthly 1/2 hourly maximum | N51: Monthly daily mean | O51: Monthly daily maximum
J52: A4 | K52: Jan
K53: Feb
K54: Mar
K55: Apr
K56: May
K57: Jun
K58: Jul
K59: Aug
K60: Sep
K61: Oct
K62: Nov
K63: Dec
K64: Annual | L64: =AVERAGE(L52:L63) ->  | M64: =MAX(M52:M63) -> 0 | N64: =AVERAGE(N52:N63) ->  | O64: =MAX(O52:O63) -> 0
J66: =+A6 -> 2021 | K66: mg/Nm3 | L66: Monthly 1/2 hourly mean | M66: Monthly 1/2 hourly maximum | N66: Monthly daily mean | O66: Monthly daily maximum
J67: A5 | K67: Jan
K68: Feb
K69: Mar
K70: Apr
K71: May
K72: Jun
K73: Jul
K74: Aug
K75: Sep
K76: Oct
K77: Nov
K78: Dec
K79: Annual | L79: =AVERAGE(L67:L78) ->  | M79: =MAX(M67:M78) -> 0 | N79: =AVERAGE(N67:N78) ->  | O79: =MAX(O67:O78) -> 0

Sheet Particulates
A1: =+'Cover Page'!$B$29 -> Annual Performance Report 2020 | E1: =+'Cover Page'!$B$33 -> Kent Enviropower Limited
A3: Monitoring of Particulate matter emissions | D3: Whole Installation | G3: See Notes in Cell Q3 | J3: =+A3 -> Monitoring of Particulate matter emissions | N3: Per Combustion Line | Q3: Notes:
Q4: User to add logic to complete Whole installation, Table A5:G18. From the data in Per Combustion Line, Table J6:O79, subject to No. of lines installed
A5: mg/Nm3 | B5: 1/2 Hourly Reference Periods | E5: Daily Reference Periods
A6: =+'Cover Page'!C39 -> 2021 | B6: 1/2 hourly PM ELV | C6: Monthly 1/2 hourly mean | D6: Highest 1/2 hourly maximum | E6: Daily PM ELV | F6: Monthly daily mean | G6: Highest daily maximum | J6: =+A6 -> 2021 | K6: mg/Nm3 | L6: Monthly 1/2 hourly mean | M6: Monthly 1/2 hourly maximum | N6: Monthly daily mean | O6: Monthly daily maximum
A7: Jan | B7: 30 | C7: 2 | D7: 41.9 | E7: 10 | F7: 2 | G7: 6 | J7: A1 | K7: Jan | L7: 2.3 | M7: 41.9 | N7: 2.3 | O7: 3
A8: Feb | B8: 30 | C8: 2.46 | D8: 14 | E8: 10 | F8: 2.46 | G8: 7.7 | K8: Feb | L8: 3.1 | M8: 12.3 | N8: 3.1 | O8: 6.5
A9: Mar | B9: 30 | C9: 2.36 | D9: 19.4 | E9: 10 | F9: 2.3 | G9: 7.4 | K9: Mar | L9: 2.7 | M9: 14.2 | N9: 2.7 | O9: 6.7 | Q9: Whole Installation table A5:G18:
A10: Apr | B10: 30 | C10: 3.26 | D10: 16.2 | E10: 10 | F10: 3.3 | G10: 8.1 | K10: Apr | L10: 2.4 | M10: 16.2 | N10: 2.5 | O10: 4.8 | Q10: Mean: for 1/2 hourly and daily periods calculate mean of values across all operational combustion lines for the month
A11: May | B11: 30 | C11: 2.56 | D11: 16.1 | E11: 10 | F11: 2.56 | G11: 8.5 | K11: May | L11: 2.5 | M11: 12.3 | N11: 2.5 | O11: 6.5
A12: Jun | B12: 30 | C12: 3.76 | D12: 18.5 | E12: 10 | F12: 3.76 | G12: 9 | K12: Jun | L12: 3.4 | M12: 13.7 | N12: 3.4 | O12: 4.5
A13: Jul | B13: 30 | C13: 3.6 | D13: 16.5 | E13: 10 | F13: 3.53 | G13: 7.1 | K13: Jul | L13: 3.6 | M13: 16.5 | N13: 3.7 | O13: 6.8 | Q13: Maximum: for 1/2 hourly and daily periods use the highest value across all operational combustion lines for the month
A14: Aug | B14: 30 | C14: 4 | D14: 25.5 | E14: 10 | F14: 3.9 | G14: 9.7 | K14: Aug | L14: 3.3 | M14: 19.4 | N14: 3.3 | O14: 6.1
A15: Sep | B15: 30 | C15: 4.5 | D15: 20.7 | E15: 10 | F15: 4.46 | G15: 8.4 | K15: Sep | L15: 3.1 | M15: 14 | N15: 3.1 | O15: 4.9
A16: Oct | B16: 30 | C16: 4.53 | D16: 188.6 | E16: 10 | F16: 1.46 | G16: 7.7 | K16: Oct | L16: 4.3 | M16: 188.6 | N16: 3.8 | O16: 7.7
A17: Nov | B17: 30 | C17: 2.06 | D17: 198.6 | E17: 10 | F17: 1.83 | G17: 5.3 | K17: Nov | L17: 4.7 | M17: 15.5 | N17: 4 | O17: 5.3
A18: Dec | B18: 30 | C18: 0.93 | D18: 37.8 | E18: 10 | F18: 0.93 | G18: 4.2 | K18: Dec | L18: 1 | M18: 24.6 | N18: 1 | O18: 4.2
K19: Annual | L19: =AVERAGE(L7:L18) -> 3.033333333 | M19: =MAX(M7:M18) -> 188.6 | N19: =AVERAGE(N7:N18) -> 2.95 | O19: =MAX(O7:O18) -> 7.7
J21: =+A6 -> 2021 | K21: mg/Nm3 | L21: Monthly 1/2 hourly mean | M21: Monthly 1/2 hourly maximum | N21: Monthly daily mean | O21: Monthly daily maximum
J22: A2 | K22: Jan | L22: 0.4 | M22: 14.1 | N22: 0.4 | O22: 1
K23: Feb | L23: 0 | M23: 13.7 | N23: 0 | O23: 0.4
K24: Mar | L24: 1 | M24: 7.3 | N24: 1 | O24: 2.1
K25: Apr | L25: 4.2 | M25: 12 | N25: 4.2 | O25: 7.4
K26: May | L26: 1.1 | M26: 6.2 | N26: 1.1 | O26: 1.4
K27: Jun | L27: 2.3 | M27: 10.4 | N27: 2.3 | O27: 4
K28: Jul | L28: 3 | M28: 6.2 | N28: 3 | O28: 4
K29: Aug | L29: 2.9 | M29: 10.6 | N29: 2.9 | O29: 3.5
K30: Sep | L30: 3.2 | M30: 6.8 | N30: 3.2 | O30: 3.8
K31: Oct | L31: 0.6 | M31: 3.8 | N31: 0.6 | O31: 0.7
K32: Nov | L32: 0.5 | M32: 0.7 | N32: 0.5 | O32: 0.6
K33: Dec | L33: 0.8 | M33: 37.8 | N33: 0.8 | O33: 3.2
K34: Annual | L34: =AVERAGE(L22:L33) -> 1.666666667 | M34: =MAX(M22:M33) -> 37.8 | N34: =AVERAGE(N22:N33) -> 1.666666667 | O34: =MAX(O22:O33) -> 7.4
J36: =+A6 -> 2021 | K36: mg/Nm3 | L36: Monthly 1/2 hourly mean | M36: Monthly 1/2 hourly maximum | N36: Monthly daily mean | O36: Monthly daily maximum
J37: A3 | K37: Jan | L37: 3.3 | M37: 8.6 | N37: 3.3 | O37: 6
K38: Feb | L38: 4.3 | M38: 14 | N38: 4.3 | O38: 7.7
K39: Mar | L39: 3.4 | M39: 19.4 | N39: 3.2 | O39: 7.4
K40: Apr | L40: 3.2 | M40: 14.3 | N40: 3.2 | O40: 8.1
K41: May | L41: 4.1 | M41: 16.1 | N41: 4.1 | O41: 8.5
K42: Jun | L42: 5.6 | M42: 18.5 | N42: 5.6 | O42: 9
K43: Jul | L43: 4.2 | M43: 14.7 | N43: 3.9 | O43: 7.1
K44: Aug | L44: 5.8 | M44: 25.5 | N44: 5.5 | O44: 9.7
K45: Sep | L45: 7.2 | M45: 20.7 | N45: 7.1 | O45: 8.4
K46: Oct | L46: 8.7 | M46: 11.5 | N46: 0 | O46: 0
K47: Nov | L47: 1 | M47: 198.6 | N47: 1 | O47: 4.7
A48: Comments : | K48: Dec | L48: 1 | M48: 19.4 | N48: 1 | O48: 1.3
K49: Annual | L49: =AVERAGE(L37:L48) -> 4.316666667 | M49: =MAX(M37:M48) -> 198.6 | N49: =AVERAGE(N37:N48) -> 3.516666667 | O49: =MAX(O37:O48) -> 9.7
J51: =+A6 -> 2021 | K51: mg/Nm3 | L51: Monthly 1/2 hourly mean | M51: Monthly 1/2 hourly maximum | N51: Monthly daily mean | O51: Monthly daily maximum
J52: A4 | K52: Jan
K53: Feb
K54: Mar
K55: Apr
K56: May
K57: Jun
K58: Jul
K59: Aug
K60: Sep
K61: Oct
K62: Nov
K63: Dec
K64: Annual | L64: =AVERAGE(L52:L63) ->  | M64: =MAX(M52:M63) -> 0 | N64: =AVERAGE(N52:N63) ->  | O64: =MAX(O52:O63) -> 0
J66: =+A6 -> 2021 | K66: mg/Nm3 | L66: Monthly 1/2 hourly mean | M66: Monthly 1/2 hourly maximum | N66: Monthly daily mean | O66: Monthly daily maximum
J67: A5 | K67: Jan
K68: Feb
K69: Mar
K70: Apr
K71: May
K72: Jun
K73: Jul
K74: Aug
K75: Sep
K76: Oct
K77: Nov
K78: Dec
K79: Annual | L79: =AVERAGE(L67:L78) ->  | M79: =MAX(M67:M78) -> 0 | N79: =AVERAGE(N67:N78) ->  | O79: =MAX(O67:O78) -> 0

Sheet CO 95% 10 min
A1: =+'Cover Page'!$B$29 -> Annual Performance Report 2020 | E1: =+'Cover Page'!$B$33 -> Kent Enviropower Limited
A3: Monitoring of Carbon Monoxide (10-minute avg) | E3: Whole Installation | H3: See Notes in Cell S3 | J3: =+A3 -> Monitoring of Carbon Monoxide (10-minute avg) | O3: Per Combustion Line | Q3: Notes: | S3: Notes:
S4: User to add logic to complete Whole installation, Table A5:H18. From the data in Per Combustion Line, Table K6:Q79, subject to No. of lines installed
A5: mg/Nm3 | B5: 10-minute Reference Periods | F5: Daily Reference Periods
A6: =+'Cover Page'!C39 -> 2021 | B6: 95%ile 10-min avg CO ELV | C6: 95%ile 10-min avg maximum | D6: Monthly CO 10-min avg mean | E6: 10-min avg maximum | F6: Daily CO ELV | G6: Monthly daily mean | H6: Highest daily maximum | K6: =+A6 -> 2021 | L6: mg/Nm3 | M6: 95%ile 10-min avg maximum | N6: Monthly CO 10-min avg mean | O6: 10-min avg maximum | P6: Monthly daily mean | Q6: Monthly daily maximum
A7: Jan | B7: 150 | D7: 3.66 | E7: 2800 | F7: 50 | G7: 3.33 | H7: 35 | K7: A1 | L7: Jan | N7: 4 | O7: 495 | P7: 3 | Q7: 10
A8: Feb | B8: =+B7 -> 150 | D8: 5 | E8: 1520 | F8: =+F7 -> 50 | G8: 5 | H8: 16 | L8: Feb | N8: 4 | O8: 1049 | P8: 4 | Q8: 11
A9: Mar | B9: =+B8 -> 150 | D9: 7 | E9: 2652 | F9: =+F8 -> 50 | G9: 6 | H9: 23 | L9: Mar | N9: 6 | O9: 2652 | P9: 5 | Q9: 19 | S9: Whole Installation table A5:H18:
A10: Apr | B10: 150 | D10: 5.66 | E10: 858 | F10: 50 | G10: 5.33 | H10: 20 | L10: Apr | N10: 5 | O10: 858 | P10: 5 | Q10: 13 | S10: Mean: for 10-min and daily periods use average of all operational combustion lines.
A11: May | B11: 150 | D11: 7.33 | E11: 1269 | F11: 50 | G11: 6.66 | H11: 22 | L11: May | N11: 6 | O11: 1269 | P11: 6 | Q11: 15
A12: Jun | B12: 150 | D12: 7 | E12: 1488 | F12: 50 | G12: 7 | H12: 26 | L12: Jun | N12: 11 | O12: 1056 | P12: 11 | Q12: 25
A13: Jul | B13: 150 | D13: 9 | E13: 3725 | F13: 50 | G13: 7.66 | H13: 27 | L13: Jul | N13: 9 | O13: 1565 | P13: 8 | Q13: 27 | S13: Maximum: for 10-min and daily periods use the highest of all operational combustion lines in any month.
A14: Aug | B14: 150 | D14: 10 | E14: 1357 | F14: 50 | G14: 8.33 | H14: 30 | L14: Aug | N14: 7 | O14: 930 | P14: 7 | Q14: 18
A15: Sep | B15: 150 | D15: 11.33 | E15: 1560 | F15: 50 | G15: 8 | H15: 19 | L15: Sep | N15: 8 | O15: 1049 | P15: 8 | Q15: 17
A16: Oct | B16: 150 | D16: 26.33 | E16: 3736 | F16: 50 | G16: 5.33 | H16: 21 | L16: Oct | N16: 16 | O16: 3736 | P16: 9 | Q16: 21
A17: Nov | B17: 150 | D17: 6 | E17: 549 | F17: 50 | G17: 5.33 | H17: 25 | L17: Nov | N17: 5 | O17: 267 | P17: 3 | Q17: 4
A18: Dec | B18: 150 | D18: 7.33 | E18: 1574 | F18: 50 | G18: 5.66 | H18: 19 | L18: Dec | N18: 8 | O18: 442 | P18: 7 | Q18: 17
L19: Annual | M19: =AVERAGE(M7:M18) ->  | O19: =MAX(O7:O18) -> 3736 | P19: =AVERAGE(P7:P18) -> 6.333333333 | Q19: =MAX(Q7:Q18) -> 27
K21: =+A6 -> 2021 | L21: mg/Nm3 | M21: 95%ile 10-min avg maximum | N21: Monthly CO 10-min avg mean | O21: 10-min avg maximum | P21: Monthly daily mean | Q21: Monthly daily maximum
K22: A2 | L22: Jan | N22: 4 | O22: 2800 | P22: 4 | Q22: 35
L23: Feb | N23: 4 | O23: 579 | P23: 4 | Q23: 15
L24: Mar | N24: 6 | O24: 1717 | P24: 6 | Q24: 19
L25: Apr | N25: 7 | O25: 726 | P25: 6 | Q25: 20
L26: May | N26: 10 | O26: 769 | P26: 9 | Q26: 22
L27: Jun | N27: 4 | O27: 695 | P27: 4 | Q27: 11
L28: Jul | N28: 7 | O28: 1840 | P28: 6 | Q28: 20
L29: Aug | N29: 15 | O29: 1224 | P29: 12 | Q29: 30
L30: Sep | N30: 8 | O30: 749 | P30: 7 | Q30: 14
L31: Oct | N31: 22 | O31: 3648 | P31: 7 | Q31: 13
L32: Nov | N32: 7 | O32: 549 | P32: 7 | Q32: 25
L33: Dec | N33: 6 | O33: 1574 | P33: 5 | Q33: 18
L34: Annual | M34: =AVERAGE(M22:M33) ->  | O34: =MAX(O22:O33) -> 3648 | P34: =AVERAGE(P22:P33) -> 6.416666667 | Q34: =MAX(Q22:Q33) -> 35
K36: =+A6 -> 2021 | L36: mg/Nm3 | M36: 95%ile 10-min avg maximum | N36: Monthly CO 10-min avg mean | O36: 10-min avg maximum | P36: Monthly daily mean | Q36: Monthly daily maximum
K37: A3 | L37: Jan | N37: 3 | O37: 1605 | P37: 3 | Q37: 13
L38: Feb | N38: 7 | O38: 1520 | P38: 7 | Q38: 16
L39: Mar | N39: 9 | O39: 1505 | P39: 7 | Q39: 23
L40: Apr | N40: 5 | O40: 380 | P40: 5 | Q40: 16
L41: May | N41: 6 | O41: 779 | P41: 5 | Q41: 12
L42: Jun | N42: 6 | O42: 1488 | P42: 6 | Q42: 26
L43: Jul | N43: 11 | O43: 3725 | P43: 9 | Q43: 19
L44: Aug | N44: 9 | O44: 1357 | P44: 6 | Q44: 15
L45: Sep | N45: 18 | O45: 1560 | P45: 9 | Q45: 19
L46: Oct | N46: 41 | O46: 542 | P46: 0 | Q46: 0
L47: Nov | N47: 6 | O47: 366 | P47: 6 | Q47: 12
A48: Comments : | L48: Dec | N48: 8 | O48: 698 | P48: 5 | Q48: 19
A49: Environment Agency explanatory note: The 10-minute average ELV is based on the “95th percentile”. In this case this means that 95% of the 10 minute averages in the relevant 24-hour period (i.e. 137) must be below 150 mg/Nm3, and 5% (i.e. 7) are allowed to be any value above 150 mg/Nm3. Whilst we expect operators to minimise CO emissions at all times, it is perfectly acceptable for the value of the maximum 10-minute average to be above 150 mg/Nm3, provided the 95th percentile ELV has been met for that period. | L49: Annual | M49: =AVERAGE(M37:M48) ->  | O49: =MAX(O37:O48) -> 3725 | P49: =AVERAGE(P37:P48) -> 5.666666667 | Q49: =MAX(Q37:Q48) -> 26
K51: =+A6 -> 2021 | L51: mg/Nm3 | M51: 95%ile 10-min avg maximum | N51: Monthly CO 10-min avg mean | O51: 10-min avg maximum | P51: Monthly daily mean | Q51: Monthly daily maximum
K52: A4 | L52: Jan
L53: Feb
L54: Mar
L55: Apr
L56: May
L57: Jun
L58: Jul
L59: Aug
L60: Sep
L61: Oct
L62: Nov
L63: Dec
L64: Annual | M64: =AVERAGE(M52:M63) ->  | O64: =MAX(O52:O63) -> 0 | P64: =AVERAGE(P52:P63) ->  | Q64: =MAX(Q52:Q63) -> 0
K66: =+A6 -> 2021 | L66: mg/Nm3 | M66: 95%ile 10-min avg maximum | N66: Monthly CO 10-min avg mean | O66: 10-min avg maximum | P66: Monthly daily mean | Q66: Monthly daily maximum
K67: A5 | L67: Jan
L68: Feb
L69: Mar
L70: Apr
L71: May
L72: Jun
L73: Jul
L74: Aug
L75: Sep
L76: Oct
L77: Nov
L78: Dec
L79: Annual | M79: =AVERAGE(M67:M78) ->  | O79: =MAX(O67:O78) -> 0 | P79: =AVERAGE(P67:P78) ->  | Q79: =MAX(Q67:Q78) -> 0

Sheet NH3
A1: =+'Cover Page'!$B$29 -> Annual Performance Report 2020 | E1: =+'Cover Page'!$B$33 -> Kent Enviropower Limited
A3: Monitoring of Ammonia emissions | D3: Whole Installation | G3: See Notes in Cell Q3 | J3: =+A3 -> Monitoring of Ammonia emissions | N3: Per Combustion Line | Q3: Notes:
Q4: User to add logic to complete Whole installation, Table A5:G18. From the data in Per Combustion Line, Table J6:O79, subject to No. of lines installed
A5: mg/Nm3 | B5: 1/2 Hourly Reference Periods | E5: Daily Reference Periods
A6: =+'Cover Page'!C39 -> 2021 | B6: 1/2 hourly NH3 ELV | C6: Monthly 1/2 hourly mean | D6: Highest 1/2 hourly maximum | E6: Daily NH3 ELV | F6: Monthly daily mean | G6: Highest daily maximum | J6: =+A6 -> 2021 | K6: mg/Nm3 | L6: Monthly 1/2 hourly mean | M6: Monthly 1/2 hourly maximum | N6: Monthly daily mean | O6: Monthly daily maximum
A7: Jan | B7: 0 | C7: 0 | D7: 0 | E7: 10 | F7: 0.37 | G7: 0.73 | J7: A1 | K7: Jan | L7: 0 | M7: 0 | N7: 0.47 | O7: 0.73
A8: Feb | B8: =+B7 -> 0 | C8: 0 | D8: 0 | E8: =+E7 -> 10 | F8: 0.42 | G8: 0.78 | K8: Feb | L8: 0 | M8: 0 | N8: 0.53 | O8: 0.71
A9: Mar | B9: =+B8 -> 0 | C9: 0 | D9: 0 | E9: =+E8 -> 10 | F9: 0.49 | G9: 1.16 | K9: Mar | L9: 0 | M9: 0 | N9: 0.74 | O9: 1.16 | Q9: Whole Installation table A5:G18:
A10: Apr | B10: 0 | C10: 0 | D10: 0 | E10: 10 | F10: 0.52 | G10: 1.26 | K10: Apr | L10: 0 | M10: 0 | N10: 0.64 | O10: 1.26 | Q10: Mean: for 1/2 hourly and daily periods calculate mean of values across all operational combustion lines for the month
A11: May | B11: 0 | C11: 0 | D11: 0 | E11: 10 | F11: 0.43 | G11: 0.77 | K11: May | L11: 0 | M11: 0 | N11: 0.53 | O11: 0.71
A12: Jun | B12: 0 | C12: 0 | D12: 0 | E12: 10 | F12: 0.5 | G12: 1.23 | K12: Jun | L12: 0 | M12: 0 | N12: 0.74 | O12: 1.23
A13: Jul | B13: 0 | C13: 0 | D13: 0 | E13: 10 | F13: 0.48 | G13: 0.96 | K13: Jul | L13: 0 | M13: 0 | N13: 0.63 | O13: 0.96 | Q13: Maximum: for 1/2 hourly and daily periods use the highest value across all operational combustion lines for the month
A14: Aug | B14: 0 | C14: 0 | D14: 0 | E14: 10 | F14: 0.45 | G14: 0.89 | K14: Aug | L14: 0 | M14: 0 | N14: 0.61 | O14: 0.89
A15: Sep | B15: 0 | C15: 0 | D15: 0 | E15: 10 | F15: 0.54 | G15: 1.53 | K15: Sep | L15: 0 | M15: 0 | N15: 0.76 | O15: 1.53
A16: Oct | B16: 0 | C16: 0 | D16: 0 | E16: 10 | F16: 0.38 | G16: 1.37 | K16: Oct | L16: 0 | M16: 0 | N16: 0.94 | O16: 1.37
A17: Nov | B17: 0 | C17: 0 | D17: 0 | E17: 10 | F17: 0.55 | G17: 0.94 | K17: Nov | L17: 0 | M17: 0 | N17: 0.8 | O17: 0.94
A18: Dec | B18: 0 | C18: 0 | D18: 0 | E18: 10 | F18: 0.62 | G18: 1.61 | K18: Dec | L18: 0 | M18: 0 | N18: 0.96 | O18: 1.61
K19: Annual | L19: =AVERAGE(L7:L18) -> 0 | M19: =MAX(M7:M18) -> 0 | N19: =AVERAGE(N7:N18) -> 0.6958333333 | O19: =MAX(O7:O18) -> 1.61
J21: =+A6 -> 2021 | K21: mg/Nm3 | L21: Monthly 1/2 hourly mean | M21: Monthly 1/2 hourly maximum | N21: Monthly daily mean | O21: Monthly daily maximum
J22: A2 | K22: Jan | L22: 0 | M22: 0 | N22: 0.17 | O22: 0.2
K23: Feb | L23: 0 | M23: 0 | N23: 0.18 | O23: 0.24
K24: Mar | L24: 0 | M24: 0 | N24: 0.18 | O24: 0.28
K25: Apr | L25: 0 | M25: 0 | N25: 0.23 | O25: 0.48
K26: May | L26: 0 | M26: 0 | N26: 0.24 | O26: 0.44
K27: Jun | L27: 0 | M27: 0 | N27: 0.2 | O27: 0.36
K28: Jul | L28: 0 | M28: 0 | N28: 0.2 | O28: 0.36
K29: Aug | L29: 0 | M29: 0 | N29: 0.26 | O29: 0.51
K30: Sep | L30: 0 | M30: 0 | N30: 0.2 | O30: 0.27
K31: Oct | L31: 0 | M31: 0 | N31: 0.23 | O31: 0.28
K32: Nov | L32: 0 | M32: 0 | N32: 0.23 | O32: 0.34
K33: Dec | L33: 0 | M33: 0 | N33: 0.22 | O33: 0.32
K34: Annual | L34: =AVERAGE(L22:L33) -> 0 | M34: =MAX(M22:M33) -> 0 | N34: =AVERAGE(N22:N33) -> 0.2116666667 | O34: =MAX(O22:O33) -> 0.51
J36: =+A6 -> 2021 | K36: mg/Nm3 | L36: Monthly 1/2 hourly mean | M36: Monthly 1/2 hourly maximum | N36: Monthly daily mean | O36: Monthly daily maximum
J37: A3 | K37: Jan | L37: 0 | M37: 0 | N37: 0.48 | O37: 0.65
K38: Feb | L38: 0 | M38: 0 | N38: 0.55 | O38: 0.78
K39: Mar | L39: 0 | M39: 0 | N39: 0.56 | O39: 0.76
K40: Apr | L40: 0 | M40: 0 | N40: 0.69 | O40: 0.96
K41: May | L41: 0 | M41: 0 | N41: 0.53 | O41: 0.77
K42: Jun | L42: 0 | M42: 0 | N42: 0.58 | O42: 0.88
K43: Jul | L43: 0 | M43: 0 | N43: 0.62 | O43: 0.93
K44: Aug | L44: 0 | M44: 0 | N44: 0.49 | O44: 0.58
K45: Sep | L45: 0 | M45: 0 | N45: 0.68 | O45: 0.96
K46: Oct | L46: 0 | M46: 0 | N46: 0 | O46: 0
K47: Nov | L47: 0 | M47: 0 | N47: 0.63 | O47: 0.85
A48: Comments : | K48: Dec | L48: 0 | M48: 0 | N48: 0.69 | O48: 0.96
A49: An indicated ELV value of zero in the table above means that no ammonia limit is set in the permit. | K49: Annual | L49: =AVERAGE(L37:L48) -> 0 | M49: =MAX(M37:M48) -> 0 | N49: =AVERAGE(N37:N48) -> 0.5416666667 | O49: =MAX(O37:O48) -> 0.96
J51: =+A6 -> 2021 | K51: mg/Nm3 | L51: Monthly 1/2 hourly mean | M51: Monthly 1/2 hourly maximum | N51: Monthly daily mean | O51: Monthly daily maximum
J52: A4 | K52: Jan
K53: Feb
K54: Mar
K55: Apr
K56: May
K57: Jun
K58: Jul
K59: Aug
K60: Sep
K61: Oct
K62: Nov
K63: Dec
K64: Annual | L64: =AVERAGE(L52:L63) ->  | M64: =MAX(M52:M63) -> 0 | N64: =AVERAGE(N52:N63) ->  | O64: =MAX(O52:O63) -> 0
J66: =+A6 -> 2021 | K66: mg/Nm3 | L66: Monthly 1/2 hourly mean | M66: Monthly 1/2 hourly maximum | N66: Monthly daily mean | O66: Monthly daily maximum
J67: A5 | K67: Jan
K68: Feb
K69: Mar
K70: Apr
K71: May
K72: Jun
K73: Jul
K74: Aug
K75: Sep
K76: Oct
K77: Nov
K78: Dec
K79: Annual | L79: =AVERAGE(L67:L78) ->  | M79: =MAX(M67:M78) -> 0 | N79: =AVERAGE(N67:N78) ->  | O79: =MAX(O67:O78) -> 0

Sheet CO 0.5hourly
A1: =+'Cover Page'!$B$29 -> Annual Performance Report 2020 | E1: =+'Cover Page'!$B$33 -> Kent Enviropower Limited
A3: Monitoring of Carbon Monoxide (half hourly) | D3: Whole Installation | G3: See Notes in Cell Q3 | J3: =+A3 -> Monitoring of Carbon Monoxide (half hourly) | N3: Per Combustion Line | Q3: Notes:
Q4: User to add logic to complete Whole installation, Table A5:G18. From the data in Per Combustion Line, Table J6:O79, subject to No. of lines installed
A5: mg/Nm3 | B5: 1/2 Hourly Reference Periods | E5: Daily Reference Periods
A6: =+'Cover Page'!C39 -> 2021 | B6: 1/2 hourly CO ELV | C6: Monthly 1/2 hourly mean | D6: Highest 1/2 hourly maximum | E6: Daily CO ELV | F6: Monthly daily mean | G6: Highest daily maximum | J6: =+A6 -> 2021 | K6: mg/Nm3 | L6: Monthly 1/2 hourly mean | M6: Monthly 1/2 hourly maximum | N6: Monthly daily mean | O6: Monthly daily maximum
A7: Jan | B7: 100 | C7: N/A | D7: N/A | E7: 50 | F7: N/A | G7: N/A | J7: A1 | K7: Jan
A8: Feb | B8: =+B7 -> 100 | C8: N/A | D8: N/A | E8: =+E7 -> 50 | F8: N/A | G8: N/A | K8: Feb
A9: Mar | B9: =+B8 -> 100 | C9: N/A | D9: N/A | E9: =+E8 -> 50 | F9: N/A | G9: N/A | K9: Mar | Q9: Whole Installation table A5:G18:
A10: Apr | B10: 100 | C10: N/A | D10: N/A | E10: 50 | F10: N/A | G10: N/A | K10: Apr | Q10: Mean: for 1/2 hourly and daily periods calculate mean of values across all operational combustion lines for the month
A11: May | B11: 100 | C11: N/A | D11: N/A | E11: 50 | F11: N/A | G11: N/A | K11: May
A12: Jun | B12: 100 | C12: N/A | D12: N/A | E12: 50 | F12: N/A | G12: N/A | K12: Jun
A13: Jul | B13: 100 | C13: N/A | D13: N/A | E13: 50 | F13: N/A | G13: N/A | K13: Jul | Q13: Maximum: for 1/2 hourly and daily periods use the highest value across all operational combustion lines for the month
A14: Aug | B14: 100 | C14: N/A | D14: N/A | E14: 50 | F14: N/A | G14: N/A | K14: Aug
A15: Sep | B15: 100 | C15: N/A | D15: N/A | E15: 50 | F15: N/A | G15: N/A | K15: Sep
A16: Oct | B16: 100 | C16: N/A | D16: N/A | E16: 50 | F16: N/A | G16: N/A | K16: Oct
A17: Nov | B17: 100 | C17: N/A | D17: N/A | E17: 50 | F17: N/A | G17: N/A | K17: Nov
A18: Dec | B18: 100 | C18: N/A | D18: N/A | E18: 50 | F18: N/A | G18: N/A | K18: Dec
K19: Annual | L19: =AVERAGE(L7:L18) ->  | M19: =MAX(M7:M18) -> 0 | N19: =AVERAGE(N7:N18) ->  | O19: =MAX(O7:O18) -> 0
J21: =+A6 -> 2021 | K21: mg/Nm3 | L21: Monthly 1/2 hourly mean | M21: Monthly 1/2 hourly maximum | N21: Monthly daily mean | O21: Monthly daily maximum
J22: A2 | K22: Jan
K23: Feb
K24: Mar
K25: Apr
K26: May
K27: Jun
K28: Jul
K29: Aug
K30: Sep
K31: Oct
K32: Nov
K33: Dec
K34: Annual | L34: =AVERAGE(L22:L33) ->  | M34: =MAX(M22:M33) -> 0 | N34: =AVERAGE(N22:N33) ->  | O34: =MAX(O22:O33) -> 0
J36: =+A6 -> 2021 | K36: mg/Nm3 | L36: Monthly 1/2 hourly mean | M36: Monthly 1/2 hourly maximum | N36: Monthly daily mean | O36: Monthly daily maximum
J37: A3 | K37: Jan
K38: Feb
K39: Mar
K40: Apr
K41: May
K42: Jun
K43: Jul
K44: Aug
K45: Sep
K46: Oct
K47: Nov
A48: Comments : | K48: Dec
K49: Annual | L49: =AVERAGE(L37:L48) ->  | M49: =MAX(M37:M48) -> 0 | N49: =AVERAGE(N37:N48) ->  | O49: =MAX(O37:O48) -> 0
J51: =+A6 -> 2021 | K51: mg/Nm3 | L51: Monthly 1/2 hourly mean | M51: Monthly 1/2 hourly maximum | N51: Monthly daily mean | O51: Monthly daily maximum
J52: A4 | K52: Jan
K53: Feb
K54: Mar
K55: Apr
K56: May
K57: Jun
K58: Jul
K59: Aug
K60: Sep
K61: Oct
K62: Nov
K63: Dec
K64: Annual | L64: =AVERAGE(L52:L63) ->  | M64: =MAX(M52:M63) -> 0 | N64: =AVERAGE(N52:N63) ->  | O64: =MAX(O52:O63) -> 0
J66: =+A6 -> 2021 | K66: mg/Nm3 | L66: Monthly 1/2 hourly mean | M66: Monthly 1/2 hourly maximum | N66: Monthly daily mean | O66: Monthly daily maximum
J67: A5 | K67: Jan
K68: Feb
K69: Mar
K70: Apr
K71: May
K72: Jun
K73: Jul
K74: Aug
K75: Sep
K76: Oct
K77: Nov
K78: Dec
K79: Annual | L79: =AVERAGE(L67:L78) ->  | M79: =MAX(M67:M78) -> 0 | N79: =AVERAGE(N67:N78) ->  | O79: =MAX(O67:O78) -> 0
